{"text_format":"1","workbook":"xlsx","n_sheets":9,"sheets":["обработано","как хочу","Статусы","Список оборудования","КПУ EBS","ДП","ТРП","ТРПШ","ТРПП"],"not_rendered":{"charts":0,"images":0,"macros":0,"external_links":0,"defined_names":1,"comments":0,"pivot_tables":0},"unopened":[],"bounds":{"document_bytes":16777216,"sheet_cells":100000,"rows_first":2000,"rows_last":500,"rows_between":2000,"halvings":0,"cell_chars":16384,"cell_head_chars":4096},"cells_cut":0,"cells_raw":0,"read":"whole","date_system":"1900"}

{"sheet":"обработано","index":0,"n_rows":37,"n_cols":7,"rows_kept":37,"cut":false,"hidden":false,"merged":[]}
[]
[]
["Шифр детали или СБ","Наименование детали или СБ","Количество ДСЕ в спецификации","Количество ДСЕ к запуску, расчетное","Остаток ДСЕ на складе","Статус запуска ДСЕ","Количество запущенных в производство ДСЕ"]
[{"$f":"IFERROR(INDEX(ТаблВспомогалка12[Шифр детали или СБ],MATCH(ROW(A1),ТаблВспомогалка12[0],)),\"\")","v":"EBС.01.000"},{"$f":"IFERROR(VLOOKUP(A4,ТаблВспомогалка12[[Шифр детали или СБ]:[Наименование детали или СБ]],2,),\"\")","v":"Кронштейн пушки"},{"$f":"IF(A4<>\"\",SUMIF(ТаблВспомогалка12[Шифр детали или СБ],A4,ТаблВспомогалка12[Количество ДСЕ в спецификации]),\"\")","v":2},{"$f":"IF(A4<>\"\",SUMIF(ТаблВспомогалка12[Шифр детали или СБ],A4,ТаблВспомогалка12[Количество ДСЕ к запуску, расчетное]),\"\")","v":17}]
[{"$f":"IFERROR(INDEX(ТаблВспомогалка12[Шифр детали или СБ],MATCH(ROW(A2),ТаблВспомогалка12[0],)),\"\")","v":"ЕВС.01.001"},{"$f":"IFERROR(VLOOKUP(A5,ТаблВспомогалка12[[Шифр детали или СБ]:[Наименование детали или СБ]],2,),\"\")","v":"Скоба"},{"$f":"IF(A5<>\"\",SUMIF(ТаблВспомогалка12[Шифр детали или СБ],A5,ТаблВспомогалка12[Количество ДСЕ в спецификации]),\"\")","v":1},{"$f":"IF(A5<>\"\",SUMIF(ТаблВспомогалка12[Шифр детали или СБ],A5,ТаблВспомогалка12[Количество ДСЕ к запуску, расчетное]),\"\")","v":15}]
[{"$f":"IFERROR(INDEX(ТаблВспомогалка12[Шифр детали или СБ],MATCH(ROW(A3),ТаблВспомогалка12[0],)),\"\")","v":"EBС.00.001"},{"$f":"IFERROR(VLOOKUP(A6,ТаблВспомогалка12[[Шифр детали или СБ]:[Наименование детали или СБ]],2,),\"\")","v":"Кронштейн"},{"$f":"IF(A6<>\"\",SUMIF(ТаблВспомогалка12[Шифр детали или СБ],A6,ТаблВспомогалка12[Количество ДСЕ в спецификации]),\"\")","v":1},{"$f":"IF(A6<>\"\",SUMIF(ТаблВспомогалка12[Шифр детали или СБ],A6,ТаблВспомогалка12[Количество ДСЕ к запуску, расчетное]),\"\")","v":15}]
[{"$f":"IFERROR(INDEX(ТаблВспомогалка12[Шифр детали или СБ],MATCH(ROW(A4),ТаблВспомогалка12[0],)),\"\")","v":"EBС.00.004"},{"$f":"IFERROR(VLOOKUP(A7,ТаблВспомогалка12[[Шифр детали или СБ]:[Наименование детали или СБ]],2,),\"\")","v":"Грибок"},{"$f":"IF(A7<>\"\",SUMIF(ТаблВспомогалка12[Шифр детали или СБ],A7,ТаблВспомогалка12[Количество ДСЕ в спецификации]),\"\")","v":3},{"$f":"IF(A7<>\"\",SUMIF(ТаблВспомогалка12[Шифр детали или СБ],A7,ТаблВспомогалка12[Количество ДСЕ к запуску, расчетное]),\"\")","v":45}]
[{"$f":"IFERROR(INDEX(ТаблВспомогалка12[Шифр детали или СБ],MATCH(ROW(A5),ТаблВспомогалка12[0],)),\"\")","v":"EBС.00.005"},{"$f":"IFERROR(VLOOKUP(A8,ТаблВспомогалка12[[Шифр детали или СБ]:[Наименование детали или СБ]],2,),\"\")","v":"Полка"},{"$f":"IF(A8<>\"\",SUMIF(ТаблВспомогалка12[Шифр детали или СБ],A8,ТаблВспомогалка12[Количество ДСЕ в спецификации]),\"\")","v":1},{"$f":"IF(A8<>\"\",SUMIF(ТаблВспомогалка12[Шифр детали или СБ],A8,ТаблВспомогалка12[Количество ДСЕ к запуску, расчетное]),\"\")","v":15}]
[{"$f":"IFERROR(INDEX(ТаблВспомогалка12[Шифр детали или СБ],MATCH(ROW(A6),ТаблВспомогалка12[0],)),\"\")","v":"EBС.00.006"},{"$f":"IFERROR(VLOOKUP(A9,ТаблВспомогалка12[[Шифр детали или СБ]:[Наименование детали или СБ]],2,),\"\")","v":"Держатель"},{"$f":"IF(A9<>\"\",SUMIF(ТаблВспомогалка12[Шифр детали или СБ],A9,ТаблВспомогалка12[Количество ДСЕ в спецификации]),\"\")","v":2},{"$f":"IF(A9<>\"\",SUMIF(ТаблВспомогалка12[Шифр детали или СБ],A9,ТаблВспомогалка12[Количество ДСЕ к запуску, расчетное]),\"\")","v":30}]
[{"$f":"IFERROR(INDEX(ТаблВспомогалка12[Шифр детали или СБ],MATCH(ROW(A7),ТаблВспомогалка12[0],)),\"\")","v":"ЕБС.00.007"},{"$f":"IFERROR(VLOOKUP(A10,ТаблВспомогалка12[[Шифр детали или СБ]:[Наименование детали или СБ]],2,),\"\")","v":"Пластина"},{"$f":"IF(A10<>\"\",SUMIF(ТаблВспомогалка12[Шифр детали или СБ],A10,ТаблВспомогалка12[Количество ДСЕ в спецификации]),\"\")","v":2},{"$f":"IF(A10<>\"\",SUMIF(ТаблВспомогалка12[Шифр детали или СБ],A10,ТаблВспомогалка12[Количество ДСЕ к запуску, расчетное]),\"\")","v":30}]
[{"$f":"IFERROR(INDEX(ТаблВспомогалка12[Шифр детали или СБ],MATCH(ROW(A8),ТаблВспомогалка12[0],)),\"\")","v":"ЕВС.01.002"},{"$f":"IFERROR(VLOOKUP(A11,ТаблВспомогалка12[[Шифр детали или СБ]:[Наименование детали или СБ]],2,),\"\")","v":"Трубка 16х1.5 08X18H10 L=800"},{"$f":"IF(A11<>\"\",SUMIF(ТаблВспомогалка12[Шифр детали или СБ],A11,ТаблВспомогалка12[Количество ДСЕ в спецификации]),\"\")","v":1},{"$f":"IF(A11<>\"\",SUMIF(ТаблВспомогалка12[Шифр детали или СБ],A11,ТаблВспомогалка12[Количество ДСЕ к запуску, расчетное]),\"\")","v":15}]
[{"$f":"IFERROR(INDEX(ТаблВспомогалка12[Шифр детали или СБ],MATCH(ROW(A9),ТаблВспомогалка12[0],)),\"\")","v":"EBС.00.002"},{"$f":"IFERROR(VLOOKUP(A12,ТаблВспомогалка12[[Шифр детали или СБ]:[Наименование детали или СБ]],2,),\"\")","v":"Труба 48.3х1.5 08X18H10 L=780"},{"$f":"IF(A12<>\"\",SUMIF(ТаблВспомогалка12[Шифр детали или СБ],A12,ТаблВспомогалка12[Количество ДСЕ в спецификации]),\"\")","v":2},{"$f":"IF(A12<>\"\",SUMIF(ТаблВспомогалка12[Шифр детали или СБ],A12,ТаблВспомогалка12[Количество ДСЕ к запуску, расчетное]),\"\")","v":30}]
[{"$f":"IFERROR(INDEX(ТаблВспомогалка12[Шифр детали или СБ],MATCH(ROW(A10),ТаблВспомогалка12[0],)),\"\")","v":"EBС.00.003"},{"$f":"IFERROR(VLOOKUP(A13,ТаблВспомогалка12[[Шифр детали или СБ]:[Наименование детали или СБ]],2,),\"\")","v":"Труба 42.4х1.5 08X18H10 L=315"},{"$f":"IF(A13<>\"\",SUMIF(ТаблВспомогалка12[Шифр детали или СБ],A13,ТаблВспомогалка12[Количество ДСЕ в спецификации]),\"\")","v":2},{"$f":"IF(A13<>\"\",SUMIF(ТаблВспомогалка12[Шифр детали или СБ],A13,ТаблВспомогалка12[Количество ДСЕ к запуску, расчетное]),\"\")","v":17}]
[{"$f":"IFERROR(INDEX(ТаблВспомогалка12[Шифр детали или СБ],MATCH(ROW(A11),ТаблВспомогалка12[0],)),\"\")","v":"ДП1"},{"$f":"IFERROR(VLOOKUP(A14,ТаблВспомогалка12[[Шифр детали или СБ]:[Наименование детали или СБ]],2,),\"\")","v":"Кронштейн пушки"},{"$f":"IF(A14<>\"\",SUMIF(ТаблВспомогалка12[Шифр детали или СБ],A14,ТаблВспомогалка12[Количество ДСЕ в спецификации]),\"\")","v":1},{"$f":"IF(A14<>\"\",SUMIF(ТаблВспомогалка12[Шифр детали или СБ],A14,ТаблВспомогалка12[Количество ДСЕ к запуску, расчетное]),\"\")","v":2}]
[{"$f":"IFERROR(INDEX(ТаблВспомогалка12[Шифр детали или СБ],MATCH(ROW(A12),ТаблВспомогалка12[0],)),\"\")","v":"ДП2"},{"$f":"IFERROR(VLOOKUP(A15,ТаблВспомогалка12[[Шифр детали или СБ]:[Наименование детали или СБ]],2,),\"\")","v":"Скоба"},{"$f":"IF(A15<>\"\",SUMIF(ТаблВспомогалка12[Шифр детали или СБ],A15,ТаблВспомогалка12[Количество ДСЕ в спецификации]),\"\")","v":1},{"$f":"IF(A15<>\"\",SUMIF(ТаблВспомогалка12[Шифр детали или СБ],A15,ТаблВспомогалка12[Количество ДСЕ к запуску, расчетное]),\"\")","v":2}]
[{"$f":"IFERROR(INDEX(ТаблВспомогалка12[Шифр детали или СБ],MATCH(ROW(A13),ТаблВспомогалка12[0],)),\"\")","v":"ДП3"},{"$f":"IFERROR(VLOOKUP(A16,ТаблВспомогалка12[[Шифр детали или СБ]:[Наименование детали или СБ]],2,),\"\")","v":"Кронштейн"},{"$f":"IF(A16<>\"\",SUMIF(ТаблВспомогалка12[Шифр детали или СБ],A16,ТаблВспомогалка12[Количество ДСЕ в спецификации]),\"\")","v":1},{"$f":"IF(A16<>\"\",SUMIF(ТаблВспомогалка12[Шифр детали или СБ],A16,ТаблВспомогалка12[Количество ДСЕ к запуску, расчетное]),\"\")","v":2}]
[{"$f":"IFERROR(INDEX(ТаблВспомогалка12[Шифр детали или СБ],MATCH(ROW(A14),ТаблВспомогалка12[0],)),\"\")","v":"ДП4"},{"$f":"IFERROR(VLOOKUP(A17,ТаблВспомогалка12[[Шифр детали или СБ]:[Наименование детали или СБ]],2,),\"\")","v":"Грибок"},{"$f":"IF(A17<>\"\",SUMIF(ТаблВспомогалка12[Шифр детали или СБ],A17,ТаблВспомогалка12[Количество ДСЕ в спецификации]),\"\")","v":3},{"$f":"IF(A17<>\"\",SUMIF(ТаблВспомогалка12[Шифр детали или СБ],A17,ТаблВспомогалка12[Количество ДСЕ к запуску, расчетное]),\"\")","v":6}]
[{"$f":"IFERROR(INDEX(ТаблВспомогалка12[Шифр детали или СБ],MATCH(ROW(A15),ТаблВспомогалка12[0],)),\"\")","v":"ДП5"},{"$f":"IFERROR(VLOOKUP(A18,ТаблВспомогалка12[[Шифр детали или СБ]:[Наименование детали или СБ]],2,),\"\")","v":"Полка"},{"$f":"IF(A18<>\"\",SUMIF(ТаблВспомогалка12[Шифр детали или СБ],A18,ТаблВспомогалка12[Количество ДСЕ в спецификации]),\"\")","v":1},{"$f":"IF(A18<>\"\",SUMIF(ТаблВспомогалка12[Шифр детали или СБ],A18,ТаблВспомогалка12[Количество ДСЕ к запуску, расчетное]),\"\")","v":2}]
[{"$f":"IFERROR(INDEX(ТаблВспомогалка12[Шифр детали или СБ],MATCH(ROW(A16),ТаблВспомогалка12[0],)),\"\")","v":"ДП6"},{"$f":"IFERROR(VLOOKUP(A19,ТаблВспомогалка12[[Шифр детали или СБ]:[Наименование детали или СБ]],2,),\"\")","v":"Держатель"},{"$f":"IF(A19<>\"\",SUMIF(ТаблВспомогалка12[Шифр детали или СБ],A19,ТаблВспомогалка12[Количество ДСЕ в спецификации]),\"\")","v":2},{"$f":"IF(A19<>\"\",SUMIF(ТаблВспомогалка12[Шифр детали или СБ],A19,ТаблВспомогалка12[Количество ДСЕ к запуску, расчетное]),\"\")","v":4}]
[{"$f":"IFERROR(INDEX(ТаблВспомогалка12[Шифр детали или СБ],MATCH(ROW(A17),ТаблВспомогалка12[0],)),\"\")","v":"ДП7"},{"$f":"IFERROR(VLOOKUP(A20,ТаблВспомогалка12[[Шифр детали или СБ]:[Наименование детали или СБ]],2,),\"\")","v":"Пластина"},{"$f":"IF(A20<>\"\",SUMIF(ТаблВспомогалка12[Шифр детали или СБ],A20,ТаблВспомогалка12[Количество ДСЕ в спецификации]),\"\")","v":2},{"$f":"IF(A20<>\"\",SUMIF(ТаблВспомогалка12[Шифр детали или СБ],A20,ТаблВспомогалка12[Количество ДСЕ к запуску, расчетное]),\"\")","v":4}]
[{"$f":"IFERROR(INDEX(ТаблВспомогалка12[Шифр детали или СБ],MATCH(ROW(A18),ТаблВспомогалка12[0],)),\"\")","v":"ДП8"},{"$f":"IFERROR(VLOOKUP(A21,ТаблВспомогалка12[[Шифр детали или СБ]:[Наименование детали или СБ]],2,),\"\")","v":"Трубка 16х1.5 08X18H10 L=800"},{"$f":"IF(A21<>\"\",SUMIF(ТаблВспомогалка12[Шифр детали или СБ],A21,ТаблВспомогалка12[Количество ДСЕ в спецификации]),\"\")","v":1},{"$f":"IF(A21<>\"\",SUMIF(ТаблВспомогалка12[Шифр детали или СБ],A21,ТаблВспомогалка12[Количество ДСЕ к запуску, расчетное]),\"\")","v":2}]
[{"$f":"IFERROR(INDEX(ТаблВспомогалка12[Шифр детали или СБ],MATCH(ROW(A19),ТаблВспомогалка12[0],)),\"\")","v":"ДП9"},{"$f":"IFERROR(VLOOKUP(A22,ТаблВспомогалка12[[Шифр детали или СБ]:[Наименование детали или СБ]],2,),\"\")","v":"Труба 48.3х1.5 08X18H10 L=780"},{"$f":"IF(A22<>\"\",SUMIF(ТаблВспомогалка12[Шифр детали или СБ],A22,ТаблВспомогалка12[Количество ДСЕ в спецификации]),\"\")","v":2},{"$f":"IF(A22<>\"\",SUMIF(ТаблВспомогалка12[Шифр детали или СБ],A22,ТаблВспомогалка12[Количество ДСЕ к запуску, расчетное]),\"\")","v":4}]
[{"$f":"IFERROR(INDEX(ТаблВспомогалка12[Шифр детали или СБ],MATCH(ROW(A20),ТаблВспомогалка12[0],)),\"\")","v":"ТРП1"},{"$f":"IFERROR(VLOOKUP(A23,ТаблВспомогалка12[[Шифр детали или СБ]:[Наименование детали или СБ]],2,),\"\")","v":"Скоба"},{"$f":"IF(A23<>\"\",SUMIF(ТаблВспомогалка12[Шифр детали или СБ],A23,ТаблВспомогалка12[Количество ДСЕ в спецификации]),\"\")","v":1},{"$f":"IF(A23<>\"\",SUMIF(ТаблВспомогалка12[Шифр детали или СБ],A23,ТаблВспомогалка12[Количество ДСЕ к запуску, расчетное]),\"\")","v":2}]
[{"$f":"IFERROR(INDEX(ТаблВспомогалка12[Шифр детали или СБ],MATCH(ROW(A21),ТаблВспомогалка12[0],)),\"\")","v":"ТРП2"},{"$f":"IFERROR(VLOOKUP(A24,ТаблВспомогалка12[[Шифр детали или СБ]:[Наименование детали или СБ]],2,),\"\")","v":"Кронштейн"},{"$f":"IF(A24<>\"\",SUMIF(ТаблВспомогалка12[Шифр детали или СБ],A24,ТаблВспомогалка12[Количество ДСЕ в спецификации]),\"\")","v":1},{"$f":"IF(A24<>\"\",SUMIF(ТаблВспомогалка12[Шифр детали или СБ],A24,ТаблВспомогалка12[Количество ДСЕ к запуску, расчетное]),\"\")","v":2}]
[{"$f":"IFERROR(INDEX(ТаблВспомогалка12[Шифр детали или СБ],MATCH(ROW(A22),ТаблВспомогалка12[0],)),\"\")","v":"ТРП3"},{"$f":"IFERROR(VLOOKUP(A25,ТаблВспомогалка12[[Шифр детали или СБ]:[Наименование детали или СБ]],2,),\"\")","v":"Грибок"},{"$f":"IF(A25<>\"\",SUMIF(ТаблВспомогалка12[Шифр детали или СБ],A25,ТаблВспомогалка12[Количество ДСЕ в спецификации]),\"\")","v":3},{"$f":"IF(A25<>\"\",SUMIF(ТаблВспомогалка12[Шифр детали или СБ],A25,ТаблВспомогалка12[Количество ДСЕ к запуску, расчетное]),\"\")","v":6}]
[{"$f":"IFERROR(INDEX(ТаблВспомогалка12[Шифр детали или СБ],MATCH(ROW(A23),ТаблВспомогалка12[0],)),\"\")","v":"ТРП4"},{"$f":"IFERROR(VLOOKUP(A26,ТаблВспомогалка12[[Шифр детали или СБ]:[Наименование детали или СБ]],2,),\"\")","v":"Полка"},{"$f":"IF(A26<>\"\",SUMIF(ТаблВспомогалка12[Шифр детали или СБ],A26,ТаблВспомогалка12[Количество ДСЕ в спецификации]),\"\")","v":1},{"$f":"IF(A26<>\"\",SUMIF(ТаблВспомогалка12[Шифр детали или СБ],A26,ТаблВспомогалка12[Количество ДСЕ к запуску, расчетное]),\"\")","v":2}]
[{"$f":"IFERROR(INDEX(ТаблВспомогалка12[Шифр детали или СБ],MATCH(ROW(A24),ТаблВспомогалка12[0],)),\"\")","v":"ТРП5"},{"$f":"IFERROR(VLOOKUP(A27,ТаблВспомогалка12[[Шифр детали или СБ]:[Наименование детали или СБ]],2,),\"\")","v":"Держатель"},{"$f":"IF(A27<>\"\",SUMIF(ТаблВспомогалка12[Шифр детали или СБ],A27,ТаблВспомогалка12[Количество ДСЕ в спецификации]),\"\")","v":2},{"$f":"IF(A27<>\"\",SUMIF(ТаблВспомогалка12[Шифр детали или СБ],A27,ТаблВспомогалка12[Количество ДСЕ к запуску, расчетное]),\"\")","v":4}]
[{"$f":"IFERROR(INDEX(ТаблВспомогалка12[Шифр детали или СБ],MATCH(ROW(A25),ТаблВспомогалка12[0],)),\"\")","v":"ТРП6"},{"$f":"IFERROR(VLOOKUP(A28,ТаблВспомогалка12[[Шифр детали или СБ]:[Наименование детали или СБ]],2,),\"\")","v":"Пластина"},{"$f":"IF(A28<>\"\",SUMIF(ТаблВспомогалка12[Шифр детали или СБ],A28,ТаблВспомогалка12[Количество ДСЕ в спецификации]),\"\")","v":2},{"$f":"IF(A28<>\"\",SUMIF(ТаблВспомогалка12[Шифр детали или СБ],A28,ТаблВспомогалка12[Количество ДСЕ к запуску, расчетное]),\"\")","v":4}]
[{"$f":"IFERROR(INDEX(ТаблВспомогалка12[Шифр детали или СБ],MATCH(ROW(A26),ТаблВспомогалка12[0],)),\"\")","v":"ТРП7"},{"$f":"IFERROR(VLOOKUP(A29,ТаблВспомогалка12[[Шифр детали или СБ]:[Наименование детали или СБ]],2,),\"\")","v":"Трубка 16х1.5 08X18H10 L=800"},{"$f":"IF(A29<>\"\",SUMIF(ТаблВспомогалка12[Шифр детали или СБ],A29,ТаблВспомогалка12[Количество ДСЕ в спецификации]),\"\")","v":1},{"$f":"IF(A29<>\"\",SUMIF(ТаблВспомогалка12[Шифр детали или СБ],A29,ТаблВспомогалка12[Количество ДСЕ к запуску, расчетное]),\"\")","v":2}]
[{"$f":"IFERROR(INDEX(ТаблВспомогалка12[Шифр детали или СБ],MATCH(ROW(A27),ТаблВспомогалка12[0],)),\"\")","v":"ТРП8"},{"$f":"IFERROR(VLOOKUP(A30,ТаблВспомогалка12[[Шифр детали или СБ]:[Наименование детали или СБ]],2,),\"\")","v":"Труба 48.3х1.5 08X18H10 L=780"},{"$f":"IF(A30<>\"\",SUMIF(ТаблВспомогалка12[Шифр детали или СБ],A30,ТаблВспомогалка12[Количество ДСЕ в спецификации]),\"\")","v":2},{"$f":"IF(A30<>\"\",SUMIF(ТаблВспомогалка12[Шифр детали или СБ],A30,ТаблВспомогалка12[Количество ДСЕ к запуску, расчетное]),\"\")","v":4}]
[{"$f":"IFERROR(INDEX(ТаблВспомогалка12[Шифр детали или СБ],MATCH(ROW(A28),ТаблВспомогалка12[0],)),\"\")","v":"ТРП9"},{"$f":"IFERROR(VLOOKUP(A31,ТаблВспомогалка12[[Шифр детали или СБ]:[Наименование детали или СБ]],2,),\"\")","v":"Труба 42.4х1.5 08X18H10 L=315"},{"$f":"IF(A31<>\"\",SUMIF(ТаблВспомогалка12[Шифр детали или СБ],A31,ТаблВспомогалка12[Количество ДСЕ в спецификации]),\"\")","v":1},{"$f":"IF(A31<>\"\",SUMIF(ТаблВспомогалка12[Шифр детали или СБ],A31,ТаблВспомогалка12[Количество ДСЕ к запуску, расчетное]),\"\")","v":2}]
[{"$f":"IFERROR(INDEX(ТаблВспомогалка12[Шифр детали или СБ],MATCH(ROW(A29),ТаблВспомогалка12[0],)),\"\")","v":""},{"$f":"IFERROR(VLOOKUP(A32,ТаблВспомогалка12[[Шифр детали или СБ]:[Наименование детали или СБ]],2,),\"\")","v":""},{"$f":"IF(A32<>\"\",SUMIF(ТаблВспомогалка12[Шифр детали или СБ],A32,ТаблВспомогалка12[Количество ДСЕ в спецификации]),\"\")","v":""},{"$f":"IF(A32<>\"\",SUMIF(ТаблВспомогалка12[Шифр детали или СБ],A32,ТаблВспомогалка12[Количество ДСЕ к запуску, расчетное]),\"\")","v":""}]
[{"$f":"IFERROR(INDEX(ТаблВспомогалка12[Шифр детали или СБ],MATCH(ROW(A30),ТаблВспомогалка12[0],)),\"\")","v":""},{"$f":"IFERROR(VLOOKUP(A33,ТаблВспомогалка12[[Шифр детали или СБ]:[Наименование детали или СБ]],2,),\"\")","v":""},{"$f":"IF(A33<>\"\",SUMIF(ТаблВспомогалка12[Шифр детали или СБ],A33,ТаблВспомогалка12[Количество ДСЕ в спецификации]),\"\")","v":""},{"$f":"IF(A33<>\"\",SUMIF(ТаблВспомогалка12[Шифр детали или СБ],A33,ТаблВспомогалка12[Количество ДСЕ к запуску, расчетное]),\"\")","v":""}]
[{"$f":"IFERROR(INDEX(ТаблВспомогалка12[Шифр детали или СБ],MATCH(ROW(A31),ТаблВспомогалка12[0],)),\"\")","v":""},{"$f":"IFERROR(VLOOKUP(A34,ТаблВспомогалка12[[Шифр детали или СБ]:[Наименование детали или СБ]],2,),\"\")","v":""},{"$f":"IF(A34<>\"\",SUMIF(ТаблВспомогалка12[Шифр детали или СБ],A34,ТаблВспомогалка12[Количество ДСЕ в спецификации]),\"\")","v":""},{"$f":"IF(A34<>\"\",SUMIF(ТаблВспомогалка12[Шифр детали или СБ],A34,ТаблВспомогалка12[Количество ДСЕ к запуску, расчетное]),\"\")","v":""}]
[{"$f":"IFERROR(INDEX(ТаблВспомогалка12[Шифр детали или СБ],MATCH(ROW(A32),ТаблВспомогалка12[0],)),\"\")","v":""},{"$f":"IFERROR(VLOOKUP(A35,ТаблВспомогалка12[[Шифр детали или СБ]:[Наименование детали или СБ]],2,),\"\")","v":""},{"$f":"IF(A35<>\"\",SUMIF(ТаблВспомогалка12[Шифр детали или СБ],A35,ТаблВспомогалка12[Количество ДСЕ в спецификации]),\"\")","v":""},{"$f":"IF(A35<>\"\",SUMIF(ТаблВспомогалка12[Шифр детали или СБ],A35,ТаблВспомогалка12[Количество ДСЕ к запуску, расчетное]),\"\")","v":""}]
[{"$f":"IFERROR(INDEX(ТаблВспомогалка12[Шифр детали или СБ],MATCH(ROW(A33),ТаблВспомогалка12[0],)),\"\")","v":""},{"$f":"IFERROR(VLOOKUP(A36,ТаблВспомогалка12[[Шифр детали или СБ]:[Наименование детали или СБ]],2,),\"\")","v":""},{"$f":"IF(A36<>\"\",SUMIF(ТаблВспомогалка12[Шифр детали или СБ],A36,ТаблВспомогалка12[Количество ДСЕ в спецификации]),\"\")","v":""},{"$f":"IF(A36<>\"\",SUMIF(ТаблВспомогалка12[Шифр детали или СБ],A36,ТаблВспомогалка12[Количество ДСЕ к запуску, расчетное]),\"\")","v":""}]
[{"$f":"IFERROR(INDEX(ТаблВспомогалка12[Шифр детали или СБ],MATCH(ROW(A34),ТаблВспомогалка12[0],)),\"\")","v":""},{"$f":"IFERROR(VLOOKUP(A37,ТаблВспомогалка12[[Шифр детали или СБ]:[Наименование детали или СБ]],2,),\"\")","v":""},{"$f":"IF(A37<>\"\",SUMIF(ТаблВспомогалка12[Шифр детали или СБ],A37,ТаблВспомогалка12[Количество ДСЕ в спецификации]),\"\")","v":""},{"$f":"IF(A37<>\"\",SUMIF(ТаблВспомогалка12[Шифр детали или СБ],A37,ТаблВспомогалка12[Количество ДСЕ к запуску, расчетное]),\"\")","v":""}]

{"sheet":"как хочу","index":1,"n_rows":84,"n_cols":8,"rows_kept":84,"cut":false,"hidden":false,"merged":[]}
["Оборудование, шифр","Количество оборудования к запуску","Текущая дата","Столбец1","Для расчета",null,{"$f":"SUM(таблПоиск11[Столбец1])","v":30}]
["КПУ EBS",15,null,{"$f":"IF(таблПоиск11[[#This Row],[Оборудование, шифр]]=\"\",\"\",COUNTA(INDIRECT(\"'\"&таблПоиск11[[#This Row],[Оборудование, шифр]]&\"'!A:A\"))-1)","v":10},{"$f":"IF(таблПоиск11[[#This Row],[Оборудование, шифр]]=\"\",\"\",SUM($D$1:D1)+1)","v":1}]
["ДП",2,null,{"$f":"IF(таблПоиск11[[#This Row],[Оборудование, шифр]]=\"\",\"\",COUNTA(INDIRECT(\"'\"&таблПоиск11[[#This Row],[Оборудование, шифр]]&\"'!A:A\"))-1)","v":10},{"$f":"IF(таблПоиск11[[#This Row],[Оборудование, шифр]]=\"\",\"\",SUM($D$1:D2)+1)","v":11}]
["трп",2,null,{"$f":"IF(таблПоиск11[[#This Row],[Оборудование, шифр]]=\"\",\"\",COUNTA(INDIRECT(\"'\"&таблПоиск11[[#This Row],[Оборудование, шифр]]&\"'!A:A\"))-1)","v":10},{"$f":"IF(таблПоиск11[[#This Row],[Оборудование, шифр]]=\"\",\"\",SUM($D$1:D3)+1)","v":21}]
[null,null,null,{"$f":"IF(таблПоиск11[[#This Row],[Оборудование, шифр]]=\"\",\"\",COUNTA(INDIRECT(\"'\"&таблПоиск11[[#This Row],[Оборудование, шифр]]&\"'!A:A\"))-1)","v":""},{"$f":"IF(таблПоиск11[[#This Row],[Оборудование, шифр]]=\"\",\"\",SUM($D$1:D4)+1)","v":""}]
[null,null,null,{"$f":"IF(таблПоиск11[[#This Row],[Оборудование, шифр]]=\"\",\"\",COUNTA(INDIRECT(\"'\"&таблПоиск11[[#This Row],[Оборудование, шифр]]&\"'!A:A\"))-1)","v":""},{"$f":"IF(таблПоиск11[[#This Row],[Оборудование, шифр]]=\"\",\"\",SUM($D$1:D5)+1)","v":""}]
[null,null,null,{"$f":"IF(таблПоиск11[[#This Row],[Оборудование, шифр]]=\"\",\"\",COUNTA(INDIRECT(\"'\"&таблПоиск11[[#This Row],[Оборудование, шифр]]&\"'!A:A\"))-1)","v":""},{"$f":"IF(таблПоиск11[[#This Row],[Оборудование, шифр]]=\"\",\"\",SUM($D$1:D6)+1)","v":""}]
[null,null,null,{"$f":"IF(таблПоиск11[[#This Row],[Оборудование, шифр]]=\"\",\"\",COUNTA(INDIRECT(\"'\"&таблПоиск11[[#This Row],[Оборудование, шифр]]&\"'!A:A\"))-1)","v":""},{"$f":"IF(таблПоиск11[[#This Row],[Оборудование, шифр]]=\"\",\"\",SUM($D$1:D7)+1)","v":""}]
[null,null,null,{"$f":"IF(таблПоиск11[[#This Row],[Оборудование, шифр]]=\"\",\"\",COUNTA(INDIRECT(\"'\"&таблПоиск11[[#This Row],[Оборудование, шифр]]&\"'!A:A\"))-1)","v":""},{"$f":"IF(таблПоиск11[[#This Row],[Оборудование, шифр]]=\"\",\"\",SUM($D$1:D8)+1)","v":""}]
[null,null,null,{"$f":"IF(таблПоиск11[[#This Row],[Оборудование, шифр]]=\"\",\"\",COUNTA(INDIRECT(\"'\"&таблПоиск11[[#This Row],[Оборудование, шифр]]&\"'!A:A\"))-1)","v":""},{"$f":"IF(таблПоиск11[[#This Row],[Оборудование, шифр]]=\"\",\"\",SUM($D$1:D9)+1)","v":""}]
[null,null,null,{"$f":"IF(таблПоиск11[[#This Row],[Оборудование, шифр]]=\"\",\"\",COUNTA(INDIRECT(\"'\"&таблПоиск11[[#This Row],[Оборудование, шифр]]&\"'!A:A\"))-1)","v":""},{"$f":"IF(таблПоиск11[[#This Row],[Оборудование, шифр]]=\"\",\"\",SUM($D$1:D10)+1)","v":""}]
[]
[]
[]
[]
[]
[]
[]
["Шифр детали или СБ","Наименование детали или СБ","Количество ДСЕ в спецификации","Количество ДСЕ к запуску, расчетное","Остаток ДСЕ на складе","Статус запуска ДСЕ","Количество запущенных в производство ДСЕ","0"]
[{"$f":"IF(ROW(A1)>$G$1,\"\",INDIRECT(\"'\"&INDEX(таблПоиск11[Оборудование, шифр],MATCH(ROW(A1),таблПоиск11[Для расчета]))&\"'!\"&ADDRESS(ROW(A1)-INDEX(таблПоиск11[Для расчета],MATCH(ROW(A1),таблПоиск11[Для расчета]))+3,COLUMN())))","v":"EBС.01.000"},{"$f":"IF(ROW(A1)>$G$1,\"\",INDIRECT(\"'\"&INDEX(таблПоиск11[Оборудование, шифр],MATCH(ROW(A1),таблПоиск11[Для расчета]))&\"'!\"&ADDRESS(ROW(A1)-INDEX(таблПоиск11[Для расчета],MATCH(ROW(A1),таблПоиск11[Для расчета]))+3,COLUMN())))","v":"Кронштейн пушки"},{"$f":"IF(ROW(C1)>$G$1,\"\",INDIRECT(\"'\"&INDEX(таблПоиск11[Оборудование, шифр],MATCH(ROW(C1),таблПоиск11[Для расчета]))&\"'!\"&ADDRESS(ROW(C1)-INDEX(таблПоиск11[Для расчета],MATCH(ROW(C1),таблПоиск11[Для расчета]))+3,COLUMN())))","v":1},{"$f":"IF(ROW(A1)>$G$1,\"\",ТаблВспомогалка12[[#This Row],[Количество ДСЕ в спецификации]]*INDEX(таблПоиск11[Количество оборудования к запуску],MATCH(ROW(A1),таблПоиск11[Для расчета])))","v":15},null,null,null,{"$f":"IF(MATCH(ТаблВспомогалка12[[#This Row],[Шифр детали или СБ]],A$20:A20,)=ROW(H1),H19+1,H19)","v":1}]
[{"$f":"IF(ROW(A2)>$G$1,\"\",INDIRECT(\"'\"&INDEX(таблПоиск11[Оборудование, шифр],MATCH(ROW(A2),таблПоиск11[Для расчета]))&\"'!\"&ADDRESS(ROW(A2)-INDEX(таблПоиск11[Для расчета],MATCH(ROW(A2),таблПоиск11[Для расчета]))+3,COLUMN())))","v":"ЕВС.01.001"},{"$f":"IF(ROW(A2)>$G$1,\"\",INDIRECT(\"'\"&INDEX(таблПоиск11[Оборудование, шифр],MATCH(ROW(A2),таблПоиск11[Для расчета]))&\"'!\"&ADDRESS(ROW(A2)-INDEX(таблПоиск11[Для расчета],MATCH(ROW(A2),таблПоиск11[Для расчета]))+3,COLUMN())))","v":"Скоба"},{"$f":"IF(ROW(C2)>$G$1,\"\",INDIRECT(\"'\"&INDEX(таблПоиск11[Оборудование, шифр],MATCH(ROW(C2),таблПоиск11[Для расчета]))&\"'!\"&ADDRESS(ROW(C2)-INDEX(таблПоиск11[Для расчета],MATCH(ROW(C2),таблПоиск11[Для расчета]))+3,COLUMN())))","v":1},{"$f":"IF(ROW(A2)>$G$1,\"\",ТаблВспомогалка12[[#This Row],[Количество ДСЕ в спецификации]]*INDEX(таблПоиск11[Количество оборудования к запуску],MATCH(ROW(A2),таблПоиск11[Для расчета])))","v":15},null,null,null,{"$f":"IF(MATCH(ТаблВспомогалка12[[#This Row],[Шифр детали или СБ]],A$20:A21,)=ROW(H2),H20+1,H20)","v":2}]
[{"$f":"IF(ROW(A3)>$G$1,\"\",INDIRECT(\"'\"&INDEX(таблПоиск11[Оборудование, шифр],MATCH(ROW(A3),таблПоиск11[Для расчета]))&\"'!\"&ADDRESS(ROW(A3)-INDEX(таблПоиск11[Для расчета],MATCH(ROW(A3),таблПоиск11[Для расчета]))+3,COLUMN())))","v":"EBС.00.001"},{"$f":"IF(ROW(A3)>$G$1,\"\",INDIRECT(\"'\"&INDEX(таблПоиск11[Оборудование, шифр],MATCH(ROW(A3),таблПоиск11[Для расчета]))&\"'!\"&ADDRESS(ROW(A3)-INDEX(таблПоиск11[Для расчета],MATCH(ROW(A3),таблПоиск11[Для расчета]))+3,COLUMN())))","v":"Кронштейн"},{"$f":"IF(ROW(C3)>$G$1,\"\",INDIRECT(\"'\"&INDEX(таблПоиск11[Оборудование, шифр],MATCH(ROW(C3),таблПоиск11[Для расчета]))&\"'!\"&ADDRESS(ROW(C3)-INDEX(таблПоиск11[Для расчета],MATCH(ROW(C3),таблПоиск11[Для расчета]))+3,COLUMN())))","v":1},{"$f":"IF(ROW(A3)>$G$1,\"\",ТаблВспомогалка12[[#This Row],[Количество ДСЕ в спецификации]]*INDEX(таблПоиск11[Количество оборудования к запуску],MATCH(ROW(A3),таблПоиск11[Для расчета])))","v":15},null,null,null,{"$f":"IF(MATCH(ТаблВспомогалка12[[#This Row],[Шифр детали или СБ]],A$20:A22,)=ROW(H3),H21+1,H21)","v":3}]
[{"$f":"IF(ROW(A4)>$G$1,\"\",INDIRECT(\"'\"&INDEX(таблПоиск11[Оборудование, шифр],MATCH(ROW(A4),таблПоиск11[Для расчета]))&\"'!\"&ADDRESS(ROW(A4)-INDEX(таблПоиск11[Для расчета],MATCH(ROW(A4),таблПоиск11[Для расчета]))+3,COLUMN())))","v":"EBС.00.004"},{"$f":"IF(ROW(A4)>$G$1,\"\",INDIRECT(\"'\"&INDEX(таблПоиск11[Оборудование, шифр],MATCH(ROW(A4),таблПоиск11[Для расчета]))&\"'!\"&ADDRESS(ROW(A4)-INDEX(таблПоиск11[Для расчета],MATCH(ROW(A4),таблПоиск11[Для расчета]))+3,COLUMN())))","v":"Грибок"},{"$f":"IF(ROW(C4)>$G$1,\"\",INDIRECT(\"'\"&INDEX(таблПоиск11[Оборудование, шифр],MATCH(ROW(C4),таблПоиск11[Для расчета]))&\"'!\"&ADDRESS(ROW(C4)-INDEX(таблПоиск11[Для расчета],MATCH(ROW(C4),таблПоиск11[Для расчета]))+3,COLUMN())))","v":3},{"$f":"IF(ROW(A4)>$G$1,\"\",ТаблВспомогалка12[[#This Row],[Количество ДСЕ в спецификации]]*INDEX(таблПоиск11[Количество оборудования к запуску],MATCH(ROW(A4),таблПоиск11[Для расчета])))","v":45},null,null,null,{"$f":"IF(MATCH(ТаблВспомогалка12[[#This Row],[Шифр детали или СБ]],A$20:A23,)=ROW(H4),H22+1,H22)","v":4}]
[{"$f":"IF(ROW(A5)>$G$1,\"\",INDIRECT(\"'\"&INDEX(таблПоиск11[Оборудование, шифр],MATCH(ROW(A5),таблПоиск11[Для расчета]))&\"'!\"&ADDRESS(ROW(A5)-INDEX(таблПоиск11[Для расчета],MATCH(ROW(A5),таблПоиск11[Для расчета]))+3,COLUMN())))","v":"EBС.00.005"},{"$f":"IF(ROW(A5)>$G$1,\"\",INDIRECT(\"'\"&INDEX(таблПоиск11[Оборудование, шифр],MATCH(ROW(A5),таблПоиск11[Для расчета]))&\"'!\"&ADDRESS(ROW(A5)-INDEX(таблПоиск11[Для расчета],MATCH(ROW(A5),таблПоиск11[Для расчета]))+3,COLUMN())))","v":"Полка"},{"$f":"IF(ROW(C5)>$G$1,\"\",INDIRECT(\"'\"&INDEX(таблПоиск11[Оборудование, шифр],MATCH(ROW(C5),таблПоиск11[Для расчета]))&\"'!\"&ADDRESS(ROW(C5)-INDEX(таблПоиск11[Для расчета],MATCH(ROW(C5),таблПоиск11[Для расчета]))+3,COLUMN())))","v":1},{"$f":"IF(ROW(A5)>$G$1,\"\",ТаблВспомогалка12[[#This Row],[Количество ДСЕ в спецификации]]*INDEX(таблПоиск11[Количество оборудования к запуску],MATCH(ROW(A5),таблПоиск11[Для расчета])))","v":15},null,null,null,{"$f":"IF(MATCH(ТаблВспомогалка12[[#This Row],[Шифр детали или СБ]],A$20:A24,)=ROW(H5),H23+1,H23)","v":5}]
[{"$f":"IF(ROW(A6)>$G$1,\"\",INDIRECT(\"'\"&INDEX(таблПоиск11[Оборудование, шифр],MATCH(ROW(A6),таблПоиск11[Для расчета]))&\"'!\"&ADDRESS(ROW(A6)-INDEX(таблПоиск11[Для расчета],MATCH(ROW(A6),таблПоиск11[Для расчета]))+3,COLUMN())))","v":"EBС.00.006"},{"$f":"IF(ROW(A6)>$G$1,\"\",INDIRECT(\"'\"&INDEX(таблПоиск11[Оборудование, шифр],MATCH(ROW(A6),таблПоиск11[Для расчета]))&\"'!\"&ADDRESS(ROW(A6)-INDEX(таблПоиск11[Для расчета],MATCH(ROW(A6),таблПоиск11[Для расчета]))+3,COLUMN())))","v":"Держатель"},{"$f":"IF(ROW(C6)>$G$1,\"\",INDIRECT(\"'\"&INDEX(таблПоиск11[Оборудование, шифр],MATCH(ROW(C6),таблПоиск11[Для расчета]))&\"'!\"&ADDRESS(ROW(C6)-INDEX(таблПоиск11[Для расчета],MATCH(ROW(C6),таблПоиск11[Для расчета]))+3,COLUMN())))","v":2},{"$f":"IF(ROW(A6)>$G$1,\"\",ТаблВспомогалка12[[#This Row],[Количество ДСЕ в спецификации]]*INDEX(таблПоиск11[Количество оборудования к запуску],MATCH(ROW(A6),таблПоиск11[Для расчета])))","v":30},null,null,null,{"$f":"IF(MATCH(ТаблВспомогалка12[[#This Row],[Шифр детали или СБ]],A$20:A25,)=ROW(H6),H24+1,H24)","v":6}]
[{"$f":"IF(ROW(A7)>$G$1,\"\",INDIRECT(\"'\"&INDEX(таблПоиск11[Оборудование, шифр],MATCH(ROW(A7),таблПоиск11[Для расчета]))&\"'!\"&ADDRESS(ROW(A7)-INDEX(таблПоиск11[Для расчета],MATCH(ROW(A7),таблПоиск11[Для расчета]))+3,COLUMN())))","v":"ЕБС.00.007"},{"$f":"IF(ROW(A7)>$G$1,\"\",INDIRECT(\"'\"&INDEX(таблПоиск11[Оборудование, шифр],MATCH(ROW(A7),таблПоиск11[Для расчета]))&\"'!\"&ADDRESS(ROW(A7)-INDEX(таблПоиск11[Для расчета],MATCH(ROW(A7),таблПоиск11[Для расчета]))+3,COLUMN())))","v":"Пластина"},{"$f":"IF(ROW(C7)>$G$1,\"\",INDIRECT(\"'\"&INDEX(таблПоиск11[Оборудование, шифр],MATCH(ROW(C7),таблПоиск11[Для расчета]))&\"'!\"&ADDRESS(ROW(C7)-INDEX(таблПоиск11[Для расчета],MATCH(ROW(C7),таблПоиск11[Для расчета]))+3,COLUMN())))","v":2},{"$f":"IF(ROW(A7)>$G$1,\"\",ТаблВспомогалка12[[#This Row],[Количество ДСЕ в спецификации]]*INDEX(таблПоиск11[Количество оборудования к запуску],MATCH(ROW(A7),таблПоиск11[Для расчета])))","v":30},null,null,null,{"$f":"IF(MATCH(ТаблВспомогалка12[[#This Row],[Шифр детали или СБ]],A$20:A26,)=ROW(H7),H25+1,H25)","v":7}]
[{"$f":"IF(ROW(A8)>$G$1,\"\",INDIRECT(\"'\"&INDEX(таблПоиск11[Оборудование, шифр],MATCH(ROW(A8),таблПоиск11[Для расчета]))&\"'!\"&ADDRESS(ROW(A8)-INDEX(таблПоиск11[Для расчета],MATCH(ROW(A8),таблПоиск11[Для расчета]))+3,COLUMN())))","v":"ЕВС.01.002"},{"$f":"IF(ROW(A8)>$G$1,\"\",INDIRECT(\"'\"&INDEX(таблПоиск11[Оборудование, шифр],MATCH(ROW(A8),таблПоиск11[Для расчета]))&\"'!\"&ADDRESS(ROW(A8)-INDEX(таблПоиск11[Для расчета],MATCH(ROW(A8),таблПоиск11[Для расчета]))+3,COLUMN())))","v":"Трубка 16х1.5 08X18H10 L=800"},{"$f":"IF(ROW(C8)>$G$1,\"\",INDIRECT(\"'\"&INDEX(таблПоиск11[Оборудование, шифр],MATCH(ROW(C8),таблПоиск11[Для расчета]))&\"'!\"&ADDRESS(ROW(C8)-INDEX(таблПоиск11[Для расчета],MATCH(ROW(C8),таблПоиск11[Для расчета]))+3,COLUMN())))","v":1},{"$f":"IF(ROW(A8)>$G$1,\"\",ТаблВспомогалка12[[#This Row],[Количество ДСЕ в спецификации]]*INDEX(таблПоиск11[Количество оборудования к запуску],MATCH(ROW(A8),таблПоиск11[Для расчета])))","v":15},null,null,null,{"$f":"IF(MATCH(ТаблВспомогалка12[[#This Row],[Шифр детали или СБ]],A$20:A27,)=ROW(H8),H26+1,H26)","v":8}]
[{"$f":"IF(ROW(A9)>$G$1,\"\",INDIRECT(\"'\"&INDEX(таблПоиск11[Оборудование, шифр],MATCH(ROW(A9),таблПоиск11[Для расчета]))&\"'!\"&ADDRESS(ROW(A9)-INDEX(таблПоиск11[Для расчета],MATCH(ROW(A9),таблПоиск11[Для расчета]))+3,COLUMN())))","v":"EBС.00.002"},{"$f":"IF(ROW(A9)>$G$1,\"\",INDIRECT(\"'\"&INDEX(таблПоиск11[Оборудование, шифр],MATCH(ROW(A9),таблПоиск11[Для расчета]))&\"'!\"&ADDRESS(ROW(A9)-INDEX(таблПоиск11[Для расчета],MATCH(ROW(A9),таблПоиск11[Для расчета]))+3,COLUMN())))","v":"Труба 48.3х1.5 08X18H10 L=780"},{"$f":"IF(ROW(C9)>$G$1,\"\",INDIRECT(\"'\"&INDEX(таблПоиск11[Оборудование, шифр],MATCH(ROW(C9),таблПоиск11[Для расчета]))&\"'!\"&ADDRESS(ROW(C9)-INDEX(таблПоиск11[Для расчета],MATCH(ROW(C9),таблПоиск11[Для расчета]))+3,COLUMN())))","v":2},{"$f":"IF(ROW(A9)>$G$1,\"\",ТаблВспомогалка12[[#This Row],[Количество ДСЕ в спецификации]]*INDEX(таблПоиск11[Количество оборудования к запуску],MATCH(ROW(A9),таблПоиск11[Для расчета])))","v":30},null,null,null,{"$f":"IF(MATCH(ТаблВспомогалка12[[#This Row],[Шифр детали или СБ]],A$20:A28,)=ROW(H9),H27+1,H27)","v":9}]
[{"$f":"IF(ROW(A10)>$G$1,\"\",INDIRECT(\"'\"&INDEX(таблПоиск11[Оборудование, шифр],MATCH(ROW(A10),таблПоиск11[Для расчета]))&\"'!\"&ADDRESS(ROW(A10)-INDEX(таблПоиск11[Для расчета],MATCH(ROW(A10),таблПоиск11[Для расчета]))+3,COLUMN())))","v":"EBС.00.003"},{"$f":"IF(ROW(A10)>$G$1,\"\",INDIRECT(\"'\"&INDEX(таблПоиск11[Оборудование, шифр],MATCH(ROW(A10),таблПоиск11[Для расчета]))&\"'!\"&ADDRESS(ROW(A10)-INDEX(таблПоиск11[Для расчета],MATCH(ROW(A10),таблПоиск11[Для расчета]))+3,COLUMN())))","v":"Труба 42.4х1.5 08X18H10 L=315"},{"$f":"IF(ROW(C10)>$G$1,\"\",INDIRECT(\"'\"&INDEX(таблПоиск11[Оборудование, шифр],MATCH(ROW(C10),таблПоиск11[Для расчета]))&\"'!\"&ADDRESS(ROW(C10)-INDEX(таблПоиск11[Для расчета],MATCH(ROW(C10),таблПоиск11[Для расчета]))+3,COLUMN())))","v":1},{"$f":"IF(ROW(A10)>$G$1,\"\",ТаблВспомогалка12[[#This Row],[Количество ДСЕ в спецификации]]*INDEX(таблПоиск11[Количество оборудования к запуску],MATCH(ROW(A10),таблПоиск11[Для расчета])))","v":15},null,null,null,{"$f":"IF(MATCH(ТаблВспомогалка12[[#This Row],[Шифр детали или СБ]],A$20:A29,)=ROW(H10),H28+1,H28)","v":10}]
[{"$f":"IF(ROW(A11)>$G$1,\"\",INDIRECT(\"'\"&INDEX(таблПоиск11[Оборудование, шифр],MATCH(ROW(A11),таблПоиск11[Для расчета]))&\"'!\"&ADDRESS(ROW(A11)-INDEX(таблПоиск11[Для расчета],MATCH(ROW(A11),таблПоиск11[Для расчета]))+3,COLUMN())))","v":"ДП1"},{"$f":"IF(ROW(A11)>$G$1,\"\",INDIRECT(\"'\"&INDEX(таблПоиск11[Оборудование, шифр],MATCH(ROW(A11),таблПоиск11[Для расчета]))&\"'!\"&ADDRESS(ROW(A11)-INDEX(таблПоиск11[Для расчета],MATCH(ROW(A11),таблПоиск11[Для расчета]))+3,COLUMN())))","v":"Кронштейн пушки"},{"$f":"IF(ROW(C11)>$G$1,\"\",INDIRECT(\"'\"&INDEX(таблПоиск11[Оборудование, шифр],MATCH(ROW(C11),таблПоиск11[Для расчета]))&\"'!\"&ADDRESS(ROW(C11)-INDEX(таблПоиск11[Для расчета],MATCH(ROW(C11),таблПоиск11[Для расчета]))+3,COLUMN())))","v":1},{"$f":"IF(ROW(A11)>$G$1,\"\",ТаблВспомогалка12[[#This Row],[Количество ДСЕ в спецификации]]*INDEX(таблПоиск11[Количество оборудования к запуску],MATCH(ROW(A11),таблПоиск11[Для расчета])))","v":2},null,null,null,{"$f":"IF(MATCH(ТаблВспомогалка12[[#This Row],[Шифр детали или СБ]],A$20:A30,)=ROW(H11),H29+1,H29)","v":11}]
[{"$f":"IF(ROW(A12)>$G$1,\"\",INDIRECT(\"'\"&INDEX(таблПоиск11[Оборудование, шифр],MATCH(ROW(A12),таблПоиск11[Для расчета]))&\"'!\"&ADDRESS(ROW(A12)-INDEX(таблПоиск11[Для расчета],MATCH(ROW(A12),таблПоиск11[Для расчета]))+3,COLUMN())))","v":"ДП2"},{"$f":"IF(ROW(A12)>$G$1,\"\",INDIRECT(\"'\"&INDEX(таблПоиск11[Оборудование, шифр],MATCH(ROW(A12),таблПоиск11[Для расчета]))&\"'!\"&ADDRESS(ROW(A12)-INDEX(таблПоиск11[Для расчета],MATCH(ROW(A12),таблПоиск11[Для расчета]))+3,COLUMN())))","v":"Скоба"},{"$f":"IF(ROW(C12)>$G$1,\"\",INDIRECT(\"'\"&INDEX(таблПоиск11[Оборудование, шифр],MATCH(ROW(C12),таблПоиск11[Для расчета]))&\"'!\"&ADDRESS(ROW(C12)-INDEX(таблПоиск11[Для расчета],MATCH(ROW(C12),таблПоиск11[Для расчета]))+3,COLUMN())))","v":1},{"$f":"IF(ROW(A12)>$G$1,\"\",ТаблВспомогалка12[[#This Row],[Количество ДСЕ в спецификации]]*INDEX(таблПоиск11[Количество оборудования к запуску],MATCH(ROW(A12),таблПоиск11[Для расчета])))","v":2},null,null,null,{"$f":"IF(MATCH(ТаблВспомогалка12[[#This Row],[Шифр детали или СБ]],A$20:A31,)=ROW(H12),H30+1,H30)","v":12}]
[{"$f":"IF(ROW(A13)>$G$1,\"\",INDIRECT(\"'\"&INDEX(таблПоиск11[Оборудование, шифр],MATCH(ROW(A13),таблПоиск11[Для расчета]))&\"'!\"&ADDRESS(ROW(A13)-INDEX(таблПоиск11[Для расчета],MATCH(ROW(A13),таблПоиск11[Для расчета]))+3,COLUMN())))","v":"ДП3"},{"$f":"IF(ROW(A13)>$G$1,\"\",INDIRECT(\"'\"&INDEX(таблПоиск11[Оборудование, шифр],MATCH(ROW(A13),таблПоиск11[Для расчета]))&\"'!\"&ADDRESS(ROW(A13)-INDEX(таблПоиск11[Для расчета],MATCH(ROW(A13),таблПоиск11[Для расчета]))+3,COLUMN())))","v":"Кронштейн"},{"$f":"IF(ROW(C13)>$G$1,\"\",INDIRECT(\"'\"&INDEX(таблПоиск11[Оборудование, шифр],MATCH(ROW(C13),таблПоиск11[Для расчета]))&\"'!\"&ADDRESS(ROW(C13)-INDEX(таблПоиск11[Для расчета],MATCH(ROW(C13),таблПоиск11[Для расчета]))+3,COLUMN())))","v":1},{"$f":"IF(ROW(A13)>$G$1,\"\",ТаблВспомогалка12[[#This Row],[Количество ДСЕ в спецификации]]*INDEX(таблПоиск11[Количество оборудования к запуску],MATCH(ROW(A13),таблПоиск11[Для расчета])))","v":2},null,null,null,{"$f":"IF(MATCH(ТаблВспомогалка12[[#This Row],[Шифр детали или СБ]],A$20:A32,)=ROW(H13),H31+1,H31)","v":13}]
[{"$f":"IF(ROW(A14)>$G$1,\"\",INDIRECT(\"'\"&INDEX(таблПоиск11[Оборудование, шифр],MATCH(ROW(A14),таблПоиск11[Для расчета]))&\"'!\"&ADDRESS(ROW(A14)-INDEX(таблПоиск11[Для расчета],MATCH(ROW(A14),таблПоиск11[Для расчета]))+3,COLUMN())))","v":"ДП4"},{"$f":"IF(ROW(A14)>$G$1,\"\",INDIRECT(\"'\"&INDEX(таблПоиск11[Оборудование, шифр],MATCH(ROW(A14),таблПоиск11[Для расчета]))&\"'!\"&ADDRESS(ROW(A14)-INDEX(таблПоиск11[Для расчета],MATCH(ROW(A14),таблПоиск11[Для расчета]))+3,COLUMN())))","v":"Грибок"},{"$f":"IF(ROW(C14)>$G$1,\"\",INDIRECT(\"'\"&INDEX(таблПоиск11[Оборудование, шифр],MATCH(ROW(C14),таблПоиск11[Для расчета]))&\"'!\"&ADDRESS(ROW(C14)-INDEX(таблПоиск11[Для расчета],MATCH(ROW(C14),таблПоиск11[Для расчета]))+3,COLUMN())))","v":3},{"$f":"IF(ROW(A14)>$G$1,\"\",ТаблВспомогалка12[[#This Row],[Количество ДСЕ в спецификации]]*INDEX(таблПоиск11[Количество оборудования к запуску],MATCH(ROW(A14),таблПоиск11[Для расчета])))","v":6},null,null,null,{"$f":"IF(MATCH(ТаблВспомогалка12[[#This Row],[Шифр детали или СБ]],A$20:A33,)=ROW(H14),H32+1,H32)","v":14}]
[{"$f":"IF(ROW(A15)>$G$1,\"\",INDIRECT(\"'\"&INDEX(таблПоиск11[Оборудование, шифр],MATCH(ROW(A15),таблПоиск11[Для расчета]))&\"'!\"&ADDRESS(ROW(A15)-INDEX(таблПоиск11[Для расчета],MATCH(ROW(A15),таблПоиск11[Для расчета]))+3,COLUMN())))","v":"ДП5"},{"$f":"IF(ROW(A15)>$G$1,\"\",INDIRECT(\"'\"&INDEX(таблПоиск11[Оборудование, шифр],MATCH(ROW(A15),таблПоиск11[Для расчета]))&\"'!\"&ADDRESS(ROW(A15)-INDEX(таблПоиск11[Для расчета],MATCH(ROW(A15),таблПоиск11[Для расчета]))+3,COLUMN())))","v":"Полка"},{"$f":"IF(ROW(C15)>$G$1,\"\",INDIRECT(\"'\"&INDEX(таблПоиск11[Оборудование, шифр],MATCH(ROW(C15),таблПоиск11[Для расчета]))&\"'!\"&ADDRESS(ROW(C15)-INDEX(таблПоиск11[Для расчета],MATCH(ROW(C15),таблПоиск11[Для расчета]))+3,COLUMN())))","v":1},{"$f":"IF(ROW(A15)>$G$1,\"\",ТаблВспомогалка12[[#This Row],[Количество ДСЕ в спецификации]]*INDEX(таблПоиск11[Количество оборудования к запуску],MATCH(ROW(A15),таблПоиск11[Для расчета])))","v":2},null,null,null,{"$f":"IF(MATCH(ТаблВспомогалка12[[#This Row],[Шифр детали или СБ]],A$20:A34,)=ROW(H15),H33+1,H33)","v":15}]
[{"$f":"IF(ROW(A16)>$G$1,\"\",INDIRECT(\"'\"&INDEX(таблПоиск11[Оборудование, шифр],MATCH(ROW(A16),таблПоиск11[Для расчета]))&\"'!\"&ADDRESS(ROW(A16)-INDEX(таблПоиск11[Для расчета],MATCH(ROW(A16),таблПоиск11[Для расчета]))+3,COLUMN())))","v":"ДП6"},{"$f":"IF(ROW(A16)>$G$1,\"\",INDIRECT(\"'\"&INDEX(таблПоиск11[Оборудование, шифр],MATCH(ROW(A16),таблПоиск11[Для расчета]))&\"'!\"&ADDRESS(ROW(A16)-INDEX(таблПоиск11[Для расчета],MATCH(ROW(A16),таблПоиск11[Для расчета]))+3,COLUMN())))","v":"Держатель"},{"$f":"IF(ROW(C16)>$G$1,\"\",INDIRECT(\"'\"&INDEX(таблПоиск11[Оборудование, шифр],MATCH(ROW(C16),таблПоиск11[Для расчета]))&\"'!\"&ADDRESS(ROW(C16)-INDEX(таблПоиск11[Для расчета],MATCH(ROW(C16),таблПоиск11[Для расчета]))+3,COLUMN())))","v":2},{"$f":"IF(ROW(A16)>$G$1,\"\",ТаблВспомогалка12[[#This Row],[Количество ДСЕ в спецификации]]*INDEX(таблПоиск11[Количество оборудования к запуску],MATCH(ROW(A16),таблПоиск11[Для расчета])))","v":4},null,null,null,{"$f":"IF(MATCH(ТаблВспомогалка12[[#This Row],[Шифр детали или СБ]],A$20:A35,)=ROW(H16),H34+1,H34)","v":16}]
[{"$f":"IF(ROW(A17)>$G$1,\"\",INDIRECT(\"'\"&INDEX(таблПоиск11[Оборудование, шифр],MATCH(ROW(A17),таблПоиск11[Для расчета]))&\"'!\"&ADDRESS(ROW(A17)-INDEX(таблПоиск11[Для расчета],MATCH(ROW(A17),таблПоиск11[Для расчета]))+3,COLUMN())))","v":"ДП7"},{"$f":"IF(ROW(A17)>$G$1,\"\",INDIRECT(\"'\"&INDEX(таблПоиск11[Оборудование, шифр],MATCH(ROW(A17),таблПоиск11[Для расчета]))&\"'!\"&ADDRESS(ROW(A17)-INDEX(таблПоиск11[Для расчета],MATCH(ROW(A17),таблПоиск11[Для расчета]))+3,COLUMN())))","v":"Пластина"},{"$f":"IF(ROW(C17)>$G$1,\"\",INDIRECT(\"'\"&INDEX(таблПоиск11[Оборудование, шифр],MATCH(ROW(C17),таблПоиск11[Для расчета]))&\"'!\"&ADDRESS(ROW(C17)-INDEX(таблПоиск11[Для расчета],MATCH(ROW(C17),таблПоиск11[Для расчета]))+3,COLUMN())))","v":2},{"$f":"IF(ROW(A17)>$G$1,\"\",ТаблВспомогалка12[[#This Row],[Количество ДСЕ в спецификации]]*INDEX(таблПоиск11[Количество оборудования к запуску],MATCH(ROW(A17),таблПоиск11[Для расчета])))","v":4},null,null,null,{"$f":"IF(MATCH(ТаблВспомогалка12[[#This Row],[Шифр детали или СБ]],A$20:A36,)=ROW(H17),H35+1,H35)","v":17}]
[{"$f":"IF(ROW(A18)>$G$1,\"\",INDIRECT(\"'\"&INDEX(таблПоиск11[Оборудование, шифр],MATCH(ROW(A18),таблПоиск11[Для расчета]))&\"'!\"&ADDRESS(ROW(A18)-INDEX(таблПоиск11[Для расчета],MATCH(ROW(A18),таблПоиск11[Для расчета]))+3,COLUMN())))","v":"ДП8"},{"$f":"IF(ROW(A18)>$G$1,\"\",INDIRECT(\"'\"&INDEX(таблПоиск11[Оборудование, шифр],MATCH(ROW(A18),таблПоиск11[Для расчета]))&\"'!\"&ADDRESS(ROW(A18)-INDEX(таблПоиск11[Для расчета],MATCH(ROW(A18),таблПоиск11[Для расчета]))+3,COLUMN())))","v":"Трубка 16х1.5 08X18H10 L=800"},{"$f":"IF(ROW(C18)>$G$1,\"\",INDIRECT(\"'\"&INDEX(таблПоиск11[Оборудование, шифр],MATCH(ROW(C18),таблПоиск11[Для расчета]))&\"'!\"&ADDRESS(ROW(C18)-INDEX(таблПоиск11[Для расчета],MATCH(ROW(C18),таблПоиск11[Для расчета]))+3,COLUMN())))","v":1},{"$f":"IF(ROW(A18)>$G$1,\"\",ТаблВспомогалка12[[#This Row],[Количество ДСЕ в спецификации]]*INDEX(таблПоиск11[Количество оборудования к запуску],MATCH(ROW(A18),таблПоиск11[Для расчета])))","v":2},null,null,null,{"$f":"IF(MATCH(ТаблВспомогалка12[[#This Row],[Шифр детали или СБ]],A$20:A37,)=ROW(H18),H36+1,H36)","v":18}]
[{"$f":"IF(ROW(A19)>$G$1,\"\",INDIRECT(\"'\"&INDEX(таблПоиск11[Оборудование, шифр],MATCH(ROW(A19),таблПоиск11[Для расчета]))&\"'!\"&ADDRESS(ROW(A19)-INDEX(таблПоиск11[Для расчета],MATCH(ROW(A19),таблПоиск11[Для расчета]))+3,COLUMN())))","v":"ДП9"},{"$f":"IF(ROW(A19)>$G$1,\"\",INDIRECT(\"'\"&INDEX(таблПоиск11[Оборудование, шифр],MATCH(ROW(A19),таблПоиск11[Для расчета]))&\"'!\"&ADDRESS(ROW(A19)-INDEX(таблПоиск11[Для расчета],MATCH(ROW(A19),таблПоиск11[Для расчета]))+3,COLUMN())))","v":"Труба 48.3х1.5 08X18H10 L=780"},{"$f":"IF(ROW(C19)>$G$1,\"\",INDIRECT(\"'\"&INDEX(таблПоиск11[Оборудование, шифр],MATCH(ROW(C19),таблПоиск11[Для расчета]))&\"'!\"&ADDRESS(ROW(C19)-INDEX(таблПоиск11[Для расчета],MATCH(ROW(C19),таблПоиск11[Для расчета]))+3,COLUMN())))","v":2},{"$f":"IF(ROW(A19)>$G$1,\"\",ТаблВспомогалка12[[#This Row],[Количество ДСЕ в спецификации]]*INDEX(таблПоиск11[Количество оборудования к запуску],MATCH(ROW(A19),таблПоиск11[Для расчета])))","v":4},null,null,null,{"$f":"IF(MATCH(ТаблВспомогалка12[[#This Row],[Шифр детали или СБ]],A$20:A38,)=ROW(H19),H37+1,H37)","v":19}]
[{"$f":"IF(ROW(A20)>$G$1,\"\",INDIRECT(\"'\"&INDEX(таблПоиск11[Оборудование, шифр],MATCH(ROW(A20),таблПоиск11[Для расчета]))&\"'!\"&ADDRESS(ROW(A20)-INDEX(таблПоиск11[Для расчета],MATCH(ROW(A20),таблПоиск11[Для расчета]))+3,COLUMN())))","v":"EBС.00.003"},{"$f":"IF(ROW(A20)>$G$1,\"\",INDIRECT(\"'\"&INDEX(таблПоиск11[Оборудование, шифр],MATCH(ROW(A20),таблПоиск11[Для расчета]))&\"'!\"&ADDRESS(ROW(A20)-INDEX(таблПоиск11[Для расчета],MATCH(ROW(A20),таблПоиск11[Для расчета]))+3,COLUMN())))","v":"Труба 42.4х1.5 08X18H10 L=315"},{"$f":"IF(ROW(C20)>$G$1,\"\",INDIRECT(\"'\"&INDEX(таблПоиск11[Оборудование, шифр],MATCH(ROW(C20),таблПоиск11[Для расчета]))&\"'!\"&ADDRESS(ROW(C20)-INDEX(таблПоиск11[Для расчета],MATCH(ROW(C20),таблПоиск11[Для расчета]))+3,COLUMN())))","v":1},{"$f":"IF(ROW(A20)>$G$1,\"\",ТаблВспомогалка12[[#This Row],[Количество ДСЕ в спецификации]]*INDEX(таблПоиск11[Количество оборудования к запуску],MATCH(ROW(A20),таблПоиск11[Для расчета])))","v":2},null,null,null,{"$f":"IF(MATCH(ТаблВспомогалка12[[#This Row],[Шифр детали или СБ]],A$20:A39,)=ROW(H20),H38+1,H38)","v":19}]
[{"$f":"IF(ROW(A21)>$G$1,\"\",INDIRECT(\"'\"&INDEX(таблПоиск11[Оборудование, шифр],MATCH(ROW(A21),таблПоиск11[Для расчета]))&\"'!\"&ADDRESS(ROW(A21)-INDEX(таблПоиск11[Для расчета],MATCH(ROW(A21),таблПоиск11[Для расчета]))+3,COLUMN())))","v":"EBС.01.000"},{"$f":"IF(ROW(A21)>$G$1,\"\",INDIRECT(\"'\"&INDEX(таблПоиск11[Оборудование, шифр],MATCH(ROW(A21),таблПоиск11[Для расчета]))&\"'!\"&ADDRESS(ROW(A21)-INDEX(таблПоиск11[Для расчета],MATCH(ROW(A21),таблПоиск11[Для расчета]))+3,COLUMN())))","v":"Кронштейн пушки"},{"$f":"IF(ROW(C21)>$G$1,\"\",INDIRECT(\"'\"&INDEX(таблПоиск11[Оборудование, шифр],MATCH(ROW(C21),таблПоиск11[Для расчета]))&\"'!\"&ADDRESS(ROW(C21)-INDEX(таблПоиск11[Для расчета],MATCH(ROW(C21),таблПоиск11[Для расчета]))+3,COLUMN())))","v":1},{"$f":"IF(ROW(A21)>$G$1,\"\",ТаблВспомогалка12[[#This Row],[Количество ДСЕ в спецификации]]*INDEX(таблПоиск11[Количество оборудования к запуску],MATCH(ROW(A21),таблПоиск11[Для расчета])))","v":2},null,null,null,{"$f":"IF(MATCH(ТаблВспомогалка12[[#This Row],[Шифр детали или СБ]],A$20:A40,)=ROW(H21),H39+1,H39)","v":19}]
[{"$f":"IF(ROW(A22)>$G$1,\"\",INDIRECT(\"'\"&INDEX(таблПоиск11[Оборудование, шифр],MATCH(ROW(A22),таблПоиск11[Для расчета]))&\"'!\"&ADDRESS(ROW(A22)-INDEX(таблПоиск11[Для расчета],MATCH(ROW(A22),таблПоиск11[Для расчета]))+3,COLUMN())))","v":"ТРП1"},{"$f":"IF(ROW(A22)>$G$1,\"\",INDIRECT(\"'\"&INDEX(таблПоиск11[Оборудование, шифр],MATCH(ROW(A22),таблПоиск11[Для расчета]))&\"'!\"&ADDRESS(ROW(A22)-INDEX(таблПоиск11[Для расчета],MATCH(ROW(A22),таблПоиск11[Для расчета]))+3,COLUMN())))","v":"Скоба"},{"$f":"IF(ROW(C22)>$G$1,\"\",INDIRECT(\"'\"&INDEX(таблПоиск11[Оборудование, шифр],MATCH(ROW(C22),таблПоиск11[Для расчета]))&\"'!\"&ADDRESS(ROW(C22)-INDEX(таблПоиск11[Для расчета],MATCH(ROW(C22),таблПоиск11[Для расчета]))+3,COLUMN())))","v":1},{"$f":"IF(ROW(A22)>$G$1,\"\",ТаблВспомогалка12[[#This Row],[Количество ДСЕ в спецификации]]*INDEX(таблПоиск11[Количество оборудования к запуску],MATCH(ROW(A22),таблПоиск11[Для расчета])))","v":2},null,null,null,{"$f":"IF(MATCH(ТаблВспомогалка12[[#This Row],[Шифр детали или СБ]],A$20:A41,)=ROW(H22),H40+1,H40)","v":20}]
[{"$f":"IF(ROW(A23)>$G$1,\"\",INDIRECT(\"'\"&INDEX(таблПоиск11[Оборудование, шифр],MATCH(ROW(A23),таблПоиск11[Для расчета]))&\"'!\"&ADDRESS(ROW(A23)-INDEX(таблПоиск11[Для расчета],MATCH(ROW(A23),таблПоиск11[Для расчета]))+3,COLUMN())))","v":"ТРП2"},{"$f":"IF(ROW(A23)>$G$1,\"\",INDIRECT(\"'\"&INDEX(таблПоиск11[Оборудование, шифр],MATCH(ROW(A23),таблПоиск11[Для расчета]))&\"'!\"&ADDRESS(ROW(A23)-INDEX(таблПоиск11[Для расчета],MATCH(ROW(A23),таблПоиск11[Для расчета]))+3,COLUMN())))","v":"Кронштейн"},{"$f":"IF(ROW(C23)>$G$1,\"\",INDIRECT(\"'\"&INDEX(таблПоиск11[Оборудование, шифр],MATCH(ROW(C23),таблПоиск11[Для расчета]))&\"'!\"&ADDRESS(ROW(C23)-INDEX(таблПоиск11[Для расчета],MATCH(ROW(C23),таблПоиск11[Для расчета]))+3,COLUMN())))","v":1},{"$f":"IF(ROW(A23)>$G$1,\"\",ТаблВспомогалка12[[#This Row],[Количество ДСЕ в спецификации]]*INDEX(таблПоиск11[Количество оборудования к запуску],MATCH(ROW(A23),таблПоиск11[Для расчета])))","v":2},null,null,null,{"$f":"IF(MATCH(ТаблВспомогалка12[[#This Row],[Шифр детали или СБ]],A$20:A42,)=ROW(H23),H41+1,H41)","v":21}]
[{"$f":"IF(ROW(A24)>$G$1,\"\",INDIRECT(\"'\"&INDEX(таблПоиск11[Оборудование, шифр],MATCH(ROW(A24),таблПоиск11[Для расчета]))&\"'!\"&ADDRESS(ROW(A24)-INDEX(таблПоиск11[Для расчета],MATCH(ROW(A24),таблПоиск11[Для расчета]))+3,COLUMN())))","v":"ТРП3"},{"$f":"IF(ROW(A24)>$G$1,\"\",INDIRECT(\"'\"&INDEX(таблПоиск11[Оборудование, шифр],MATCH(ROW(A24),таблПоиск11[Для расчета]))&\"'!\"&ADDRESS(ROW(A24)-INDEX(таблПоиск11[Для расчета],MATCH(ROW(A24),таблПоиск11[Для расчета]))+3,COLUMN())))","v":"Грибок"},{"$f":"IF(ROW(C24)>$G$1,\"\",INDIRECT(\"'\"&INDEX(таблПоиск11[Оборудование, шифр],MATCH(ROW(C24),таблПоиск11[Для расчета]))&\"'!\"&ADDRESS(ROW(C24)-INDEX(таблПоиск11[Для расчета],MATCH(ROW(C24),таблПоиск11[Для расчета]))+3,COLUMN())))","v":3},{"$f":"IF(ROW(A24)>$G$1,\"\",ТаблВспомогалка12[[#This Row],[Количество ДСЕ в спецификации]]*INDEX(таблПоиск11[Количество оборудования к запуску],MATCH(ROW(A24),таблПоиск11[Для расчета])))","v":6},null,null,null,{"$f":"IF(MATCH(ТаблВспомогалка12[[#This Row],[Шифр детали или СБ]],A$20:A43,)=ROW(H24),H42+1,H42)","v":22}]
[{"$f":"IF(ROW(A25)>$G$1,\"\",INDIRECT(\"'\"&INDEX(таблПоиск11[Оборудование, шифр],MATCH(ROW(A25),таблПоиск11[Для расчета]))&\"'!\"&ADDRESS(ROW(A25)-INDEX(таблПоиск11[Для расчета],MATCH(ROW(A25),таблПоиск11[Для расчета]))+3,COLUMN())))","v":"ТРП4"},{"$f":"IF(ROW(A25)>$G$1,\"\",INDIRECT(\"'\"&INDEX(таблПоиск11[Оборудование, шифр],MATCH(ROW(A25),таблПоиск11[Для расчета]))&\"'!\"&ADDRESS(ROW(A25)-INDEX(таблПоиск11[Для расчета],MATCH(ROW(A25),таблПоиск11[Для расчета]))+3,COLUMN())))","v":"Полка"},{"$f":"IF(ROW(C25)>$G$1,\"\",INDIRECT(\"'\"&INDEX(таблПоиск11[Оборудование, шифр],MATCH(ROW(C25),таблПоиск11[Для расчета]))&\"'!\"&ADDRESS(ROW(C25)-INDEX(таблПоиск11[Для расчета],MATCH(ROW(C25),таблПоиск11[Для расчета]))+3,COLUMN())))","v":1},{"$f":"IF(ROW(A25)>$G$1,\"\",ТаблВспомогалка12[[#This Row],[Количество ДСЕ в спецификации]]*INDEX(таблПоиск11[Количество оборудования к запуску],MATCH(ROW(A25),таблПоиск11[Для расчета])))","v":2},null,null,null,{"$f":"IF(MATCH(ТаблВспомогалка12[[#This Row],[Шифр детали или СБ]],A$20:A44,)=ROW(H25),H43+1,H43)","v":23}]
[{"$f":"IF(ROW(A26)>$G$1,\"\",INDIRECT(\"'\"&INDEX(таблПоиск11[Оборудование, шифр],MATCH(ROW(A26),таблПоиск11[Для расчета]))&\"'!\"&ADDRESS(ROW(A26)-INDEX(таблПоиск11[Для расчета],MATCH(ROW(A26),таблПоиск11[Для расчета]))+3,COLUMN())))","v":"ТРП5"},{"$f":"IF(ROW(A26)>$G$1,\"\",INDIRECT(\"'\"&INDEX(таблПоиск11[Оборудование, шифр],MATCH(ROW(A26),таблПоиск11[Для расчета]))&\"'!\"&ADDRESS(ROW(A26)-INDEX(таблПоиск11[Для расчета],MATCH(ROW(A26),таблПоиск11[Для расчета]))+3,COLUMN())))","v":"Держатель"},{"$f":"IF(ROW(C26)>$G$1,\"\",INDIRECT(\"'\"&INDEX(таблПоиск11[Оборудование, шифр],MATCH(ROW(C26),таблПоиск11[Для расчета]))&\"'!\"&ADDRESS(ROW(C26)-INDEX(таблПоиск11[Для расчета],MATCH(ROW(C26),таблПоиск11[Для расчета]))+3,COLUMN())))","v":2},{"$f":"IF(ROW(A26)>$G$1,\"\",ТаблВспомогалка12[[#This Row],[Количество ДСЕ в спецификации]]*INDEX(таблПоиск11[Количество оборудования к запуску],MATCH(ROW(A26),таблПоиск11[Для расчета])))","v":4},null,null,null,{"$f":"IF(MATCH(ТаблВспомогалка12[[#This Row],[Шифр детали или СБ]],A$20:A45,)=ROW(H26),H44+1,H44)","v":24}]
[{"$f":"IF(ROW(A27)>$G$1,\"\",INDIRECT(\"'\"&INDEX(таблПоиск11[Оборудование, шифр],MATCH(ROW(A27),таблПоиск11[Для расчета]))&\"'!\"&ADDRESS(ROW(A27)-INDEX(таблПоиск11[Для расчета],MATCH(ROW(A27),таблПоиск11[Для расчета]))+3,COLUMN())))","v":"ТРП6"},{"$f":"IF(ROW(A27)>$G$1,\"\",INDIRECT(\"'\"&INDEX(таблПоиск11[Оборудование, шифр],MATCH(ROW(A27),таблПоиск11[Для расчета]))&\"'!\"&ADDRESS(ROW(A27)-INDEX(таблПоиск11[Для расчета],MATCH(ROW(A27),таблПоиск11[Для расчета]))+3,COLUMN())))","v":"Пластина"},{"$f":"IF(ROW(C27)>$G$1,\"\",INDIRECT(\"'\"&INDEX(таблПоиск11[Оборудование, шифр],MATCH(ROW(C27),таблПоиск11[Для расчета]))&\"'!\"&ADDRESS(ROW(C27)-INDEX(таблПоиск11[Для расчета],MATCH(ROW(C27),таблПоиск11[Для расчета]))+3,COLUMN())))","v":2},{"$f":"IF(ROW(A27)>$G$1,\"\",ТаблВспомогалка12[[#This Row],[Количество ДСЕ в спецификации]]*INDEX(таблПоиск11[Количество оборудования к запуску],MATCH(ROW(A27),таблПоиск11[Для расчета])))","v":4},null,null,null,{"$f":"IF(MATCH(ТаблВспомогалка12[[#This Row],[Шифр детали или СБ]],A$20:A46,)=ROW(H27),H45+1,H45)","v":25}]
[{"$f":"IF(ROW(A28)>$G$1,\"\",INDIRECT(\"'\"&INDEX(таблПоиск11[Оборудование, шифр],MATCH(ROW(A28),таблПоиск11[Для расчета]))&\"'!\"&ADDRESS(ROW(A28)-INDEX(таблПоиск11[Для расчета],MATCH(ROW(A28),таблПоиск11[Для расчета]))+3,COLUMN())))","v":"ТРП7"},{"$f":"IF(ROW(A28)>$G$1,\"\",INDIRECT(\"'\"&INDEX(таблПоиск11[Оборудование, шифр],MATCH(ROW(A28),таблПоиск11[Для расчета]))&\"'!\"&ADDRESS(ROW(A28)-INDEX(таблПоиск11[Для расчета],MATCH(ROW(A28),таблПоиск11[Для расчета]))+3,COLUMN())))","v":"Трубка 16х1.5 08X18H10 L=800"},{"$f":"IF(ROW(C28)>$G$1,\"\",INDIRECT(\"'\"&INDEX(таблПоиск11[Оборудование, шифр],MATCH(ROW(C28),таблПоиск11[Для расчета]))&\"'!\"&ADDRESS(ROW(C28)-INDEX(таблПоиск11[Для расчета],MATCH(ROW(C28),таблПоиск11[Для расчета]))+3,COLUMN())))","v":1},{"$f":"IF(ROW(A28)>$G$1,\"\",ТаблВспомогалка12[[#This Row],[Количество ДСЕ в спецификации]]*INDEX(таблПоиск11[Количество оборудования к запуску],MATCH(ROW(A28),таблПоиск11[Для расчета])))","v":2},null,null,null,{"$f":"IF(MATCH(ТаблВспомогалка12[[#This Row],[Шифр детали или СБ]],A$20:A47,)=ROW(H28),H46+1,H46)","v":26}]
[{"$f":"IF(ROW(A29)>$G$1,\"\",INDIRECT(\"'\"&INDEX(таблПоиск11[Оборудование, шифр],MATCH(ROW(A29),таблПоиск11[Для расчета]))&\"'!\"&ADDRESS(ROW(A29)-INDEX(таблПоиск11[Для расчета],MATCH(ROW(A29),таблПоиск11[Для расчета]))+3,COLUMN())))","v":"ТРП8"},{"$f":"IF(ROW(A29)>$G$1,\"\",INDIRECT(\"'\"&INDEX(таблПоиск11[Оборудование, шифр],MATCH(ROW(A29),таблПоиск11[Для расчета]))&\"'!\"&ADDRESS(ROW(A29)-INDEX(таблПоиск11[Для расчета],MATCH(ROW(A29),таблПоиск11[Для расчета]))+3,COLUMN())))","v":"Труба 48.3х1.5 08X18H10 L=780"},{"$f":"IF(ROW(C29)>$G$1,\"\",INDIRECT(\"'\"&INDEX(таблПоиск11[Оборудование, шифр],MATCH(ROW(C29),таблПоиск11[Для расчета]))&\"'!\"&ADDRESS(ROW(C29)-INDEX(таблПоиск11[Для расчета],MATCH(ROW(C29),таблПоиск11[Для расчета]))+3,COLUMN())))","v":2},{"$f":"IF(ROW(A29)>$G$1,\"\",ТаблВспомогалка12[[#This Row],[Количество ДСЕ в спецификации]]*INDEX(таблПоиск11[Количество оборудования к запуску],MATCH(ROW(A29),таблПоиск11[Для расчета])))","v":4},null,null,null,{"$f":"IF(MATCH(ТаблВспомогалка12[[#This Row],[Шифр детали или СБ]],A$20:A48,)=ROW(H29),H47+1,H47)","v":27}]
[{"$f":"IF(ROW(A30)>$G$1,\"\",INDIRECT(\"'\"&INDEX(таблПоиск11[Оборудование, шифр],MATCH(ROW(A30),таблПоиск11[Для расчета]))&\"'!\"&ADDRESS(ROW(A30)-INDEX(таблПоиск11[Для расчета],MATCH(ROW(A30),таблПоиск11[Для расчета]))+3,COLUMN())))","v":"ТРП9"},{"$f":"IF(ROW(A30)>$G$1,\"\",INDIRECT(\"'\"&INDEX(таблПоиск11[Оборудование, шифр],MATCH(ROW(A30),таблПоиск11[Для расчета]))&\"'!\"&ADDRESS(ROW(A30)-INDEX(таблПоиск11[Для расчета],MATCH(ROW(A30),таблПоиск11[Для расчета]))+3,COLUMN())))","v":"Труба 42.4х1.5 08X18H10 L=315"},{"$f":"IF(ROW(C30)>$G$1,\"\",INDIRECT(\"'\"&INDEX(таблПоиск11[Оборудование, шифр],MATCH(ROW(C30),таблПоиск11[Для расчета]))&\"'!\"&ADDRESS(ROW(C30)-INDEX(таблПоиск11[Для расчета],MATCH(ROW(C30),таблПоиск11[Для расчета]))+3,COLUMN())))","v":1},{"$f":"IF(ROW(A30)>$G$1,\"\",ТаблВспомогалка12[[#This Row],[Количество ДСЕ в спецификации]]*INDEX(таблПоиск11[Количество оборудования к запуску],MATCH(ROW(A30),таблПоиск11[Для расчета])))","v":2},null,null,null,{"$f":"IF(MATCH(ТаблВспомогалка12[[#This Row],[Шифр детали или СБ]],A$20:A49,)=ROW(H30),H48+1,H48)","v":28}]
[{"$f":"IF(ROW(A31)>$G$1,\"\",INDIRECT(\"'\"&INDEX(таблПоиск11[Оборудование, шифр],MATCH(ROW(A31),таблПоиск11[Для расчета]))&\"'!\"&ADDRESS(ROW(A31)-INDEX(таблПоиск11[Для расчета],MATCH(ROW(A31),таблПоиск11[Для расчета]))+3,COLUMN())))","v":""},{"$f":"IF(ROW(A31)>$G$1,\"\",INDIRECT(\"'\"&INDEX(таблПоиск11[Оборудование, шифр],MATCH(ROW(A31),таблПоиск11[Для расчета]))&\"'!\"&ADDRESS(ROW(A31)-INDEX(таблПоиск11[Для расчета],MATCH(ROW(A31),таблПоиск11[Для расчета]))+3,COLUMN())))","v":""},{"$f":"IF(ROW(C31)>$G$1,\"\",INDIRECT(\"'\"&INDEX(таблПоиск11[Оборудование, шифр],MATCH(ROW(C31),таблПоиск11[Для расчета]))&\"'!\"&ADDRESS(ROW(C31)-INDEX(таблПоиск11[Для расчета],MATCH(ROW(C31),таблПоиск11[Для расчета]))+3,COLUMN())))","v":""},{"$f":"IF(ROW(A31)>$G$1,\"\",ТаблВспомогалка12[[#This Row],[Количество ДСЕ в спецификации]]*INDEX(таблПоиск11[Количество оборудования к запуску],MATCH(ROW(A31),таблПоиск11[Для расчета])))","v":""},null,null,null,{"$f":"IF(MATCH(ТаблВспомогалка12[[#This Row],[Шифр детали или СБ]],A$20:A50,)=ROW(H31),H49+1,H49)","v":29}]
[{"$f":"IF(ROW(A32)>$G$1,\"\",INDIRECT(\"'\"&INDEX(таблПоиск11[Оборудование, шифр],MATCH(ROW(A32),таблПоиск11[Для расчета]))&\"'!\"&ADDRESS(ROW(A32)-INDEX(таблПоиск11[Для расчета],MATCH(ROW(A32),таблПоиск11[Для расчета]))+3,COLUMN())))","v":""},{"$f":"IF(ROW(A32)>$G$1,\"\",INDIRECT(\"'\"&INDEX(таблПоиск11[Оборудование, шифр],MATCH(ROW(A32),таблПоиск11[Для расчета]))&\"'!\"&ADDRESS(ROW(A32)-INDEX(таблПоиск11[Для расчета],MATCH(ROW(A32),таблПоиск11[Для расчета]))+3,COLUMN())))","v":""},{"$f":"IF(ROW(C32)>$G$1,\"\",INDIRECT(\"'\"&INDEX(таблПоиск11[Оборудование, шифр],MATCH(ROW(C32),таблПоиск11[Для расчета]))&\"'!\"&ADDRESS(ROW(C32)-INDEX(таблПоиск11[Для расчета],MATCH(ROW(C32),таблПоиск11[Для расчета]))+3,COLUMN())))","v":""},{"$f":"IF(ROW(A32)>$G$1,\"\",ТаблВспомогалка12[[#This Row],[Количество ДСЕ в спецификации]]*INDEX(таблПоиск11[Количество оборудования к запуску],MATCH(ROW(A32),таблПоиск11[Для расчета])))","v":""},null,null,null,{"$f":"IF(MATCH(ТаблВспомогалка12[[#This Row],[Шифр детали или СБ]],A$20:A51,)=ROW(H32),H50+1,H50)","v":29}]
[{"$f":"IF(ROW(A33)>$G$1,\"\",INDIRECT(\"'\"&INDEX(таблПоиск11[Оборудование, шифр],MATCH(ROW(A33),таблПоиск11[Для расчета]))&\"'!\"&ADDRESS(ROW(A33)-INDEX(таблПоиск11[Для расчета],MATCH(ROW(A33),таблПоиск11[Для расчета]))+3,COLUMN())))","v":""},{"$f":"IF(ROW(A33)>$G$1,\"\",INDIRECT(\"'\"&INDEX(таблПоиск11[Оборудование, шифр],MATCH(ROW(A33),таблПоиск11[Для расчета]))&\"'!\"&ADDRESS(ROW(A33)-INDEX(таблПоиск11[Для расчета],MATCH(ROW(A33),таблПоиск11[Для расчета]))+3,COLUMN())))","v":""},{"$f":"IF(ROW(C33)>$G$1,\"\",INDIRECT(\"'\"&INDEX(таблПоиск11[Оборудование, шифр],MATCH(ROW(C33),таблПоиск11[Для расчета]))&\"'!\"&ADDRESS(ROW(C33)-INDEX(таблПоиск11[Для расчета],MATCH(ROW(C33),таблПоиск11[Для расчета]))+3,COLUMN())))","v":""},{"$f":"IF(ROW(A33)>$G$1,\"\",ТаблВспомогалка12[[#This Row],[Количество ДСЕ в спецификации]]*INDEX(таблПоиск11[Количество оборудования к запуску],MATCH(ROW(A33),таблПоиск11[Для расчета])))","v":""},null,null,null,{"$f":"IF(MATCH(ТаблВспомогалка12[[#This Row],[Шифр детали или СБ]],A$20:A52,)=ROW(H33),H51+1,H51)","v":29}]
[{"$f":"IF(ROW(A34)>$G$1,\"\",INDIRECT(\"'\"&INDEX(таблПоиск11[Оборудование, шифр],MATCH(ROW(A34),таблПоиск11[Для расчета]))&\"'!\"&ADDRESS(ROW(A34)-INDEX(таблПоиск11[Для расчета],MATCH(ROW(A34),таблПоиск11[Для расчета]))+3,COLUMN())))","v":""},{"$f":"IF(ROW(A34)>$G$1,\"\",INDIRECT(\"'\"&INDEX(таблПоиск11[Оборудование, шифр],MATCH(ROW(A34),таблПоиск11[Для расчета]))&\"'!\"&ADDRESS(ROW(A34)-INDEX(таблПоиск11[Для расчета],MATCH(ROW(A34),таблПоиск11[Для расчета]))+3,COLUMN())))","v":""},{"$f":"IF(ROW(C34)>$G$1,\"\",INDIRECT(\"'\"&INDEX(таблПоиск11[Оборудование, шифр],MATCH(ROW(C34),таблПоиск11[Для расчета]))&\"'!\"&ADDRESS(ROW(C34)-INDEX(таблПоиск11[Для расчета],MATCH(ROW(C34),таблПоиск11[Для расчета]))+3,COLUMN())))","v":""},{"$f":"IF(ROW(A34)>$G$1,\"\",ТаблВспомогалка12[[#This Row],[Количество ДСЕ в спецификации]]*INDEX(таблПоиск11[Количество оборудования к запуску],MATCH(ROW(A34),таблПоиск11[Для расчета])))","v":""},null,null,null,{"$f":"IF(MATCH(ТаблВспомогалка12[[#This Row],[Шифр детали или СБ]],A$20:A53,)=ROW(H34),H52+1,H52)","v":29}]
[{"$f":"IF(ROW(A35)>$G$1,\"\",INDIRECT(\"'\"&INDEX(таблПоиск11[Оборудование, шифр],MATCH(ROW(A35),таблПоиск11[Для расчета]))&\"'!\"&ADDRESS(ROW(A35)-INDEX(таблПоиск11[Для расчета],MATCH(ROW(A35),таблПоиск11[Для расчета]))+3,COLUMN())))","v":""},{"$f":"IF(ROW(A35)>$G$1,\"\",INDIRECT(\"'\"&INDEX(таблПоиск11[Оборудование, шифр],MATCH(ROW(A35),таблПоиск11[Для расчета]))&\"'!\"&ADDRESS(ROW(A35)-INDEX(таблПоиск11[Для расчета],MATCH(ROW(A35),таблПоиск11[Для расчета]))+3,COLUMN())))","v":""},{"$f":"IF(ROW(C35)>$G$1,\"\",INDIRECT(\"'\"&INDEX(таблПоиск11[Оборудование, шифр],MATCH(ROW(C35),таблПоиск11[Для расчета]))&\"'!\"&ADDRESS(ROW(C35)-INDEX(таблПоиск11[Для расчета],MATCH(ROW(C35),таблПоиск11[Для расчета]))+3,COLUMN())))","v":""},{"$f":"IF(ROW(A35)>$G$1,\"\",ТаблВспомогалка12[[#This Row],[Количество ДСЕ в спецификации]]*INDEX(таблПоиск11[Количество оборудования к запуску],MATCH(ROW(A35),таблПоиск11[Для расчета])))","v":""},null,null,null,{"$f":"IF(MATCH(ТаблВспомогалка12[[#This Row],[Шифр детали или СБ]],A$20:A54,)=ROW(H35),H53+1,H53)","v":29}]
[{"$f":"IF(ROW(A36)>$G$1,\"\",INDIRECT(\"'\"&INDEX(таблПоиск11[Оборудование, шифр],MATCH(ROW(A36),таблПоиск11[Для расчета]))&\"'!\"&ADDRESS(ROW(A36)-INDEX(таблПоиск11[Для расчета],MATCH(ROW(A36),таблПоиск11[Для расчета]))+3,COLUMN())))","v":""},{"$f":"IF(ROW(A36)>$G$1,\"\",INDIRECT(\"'\"&INDEX(таблПоиск11[Оборудование, шифр],MATCH(ROW(A36),таблПоиск11[Для расчета]))&\"'!\"&ADDRESS(ROW(A36)-INDEX(таблПоиск11[Для расчета],MATCH(ROW(A36),таблПоиск11[Для расчета]))+3,COLUMN())))","v":""},{"$f":"IF(ROW(C36)>$G$1,\"\",INDIRECT(\"'\"&INDEX(таблПоиск11[Оборудование, шифр],MATCH(ROW(C36),таблПоиск11[Для расчета]))&\"'!\"&ADDRESS(ROW(C36)-INDEX(таблПоиск11[Для расчета],MATCH(ROW(C36),таблПоиск11[Для расчета]))+3,COLUMN())))","v":""},{"$f":"IF(ROW(A36)>$G$1,\"\",ТаблВспомогалка12[[#This Row],[Количество ДСЕ в спецификации]]*INDEX(таблПоиск11[Количество оборудования к запуску],MATCH(ROW(A36),таблПоиск11[Для расчета])))","v":""},null,null,null,{"$f":"IF(MATCH(ТаблВспомогалка12[[#This Row],[Шифр детали или СБ]],A$20:A55,)=ROW(H36),H54+1,H54)","v":29}]
[{"$f":"IF(ROW(A37)>$G$1,\"\",INDIRECT(\"'\"&INDEX(таблПоиск11[Оборудование, шифр],MATCH(ROW(A37),таблПоиск11[Для расчета]))&\"'!\"&ADDRESS(ROW(A37)-INDEX(таблПоиск11[Для расчета],MATCH(ROW(A37),таблПоиск11[Для расчета]))+3,COLUMN())))","v":""},{"$f":"IF(ROW(A37)>$G$1,\"\",INDIRECT(\"'\"&INDEX(таблПоиск11[Оборудование, шифр],MATCH(ROW(A37),таблПоиск11[Для расчета]))&\"'!\"&ADDRESS(ROW(A37)-INDEX(таблПоиск11[Для расчета],MATCH(ROW(A37),таблПоиск11[Для расчета]))+3,COLUMN())))","v":""},{"$f":"IF(ROW(C37)>$G$1,\"\",INDIRECT(\"'\"&INDEX(таблПоиск11[Оборудование, шифр],MATCH(ROW(C37),таблПоиск11[Для расчета]))&\"'!\"&ADDRESS(ROW(C37)-INDEX(таблПоиск11[Для расчета],MATCH(ROW(C37),таблПоиск11[Для расчета]))+3,COLUMN())))","v":""},{"$f":"IF(ROW(A37)>$G$1,\"\",ТаблВспомогалка12[[#This Row],[Количество ДСЕ в спецификации]]*INDEX(таблПоиск11[Количество оборудования к запуску],MATCH(ROW(A37),таблПоиск11[Для расчета])))","v":""},null,null,null,{"$f":"IF(MATCH(ТаблВспомогалка12[[#This Row],[Шифр детали или СБ]],A$20:A56,)=ROW(H37),H55+1,H55)","v":29}]
[{"$f":"IF(ROW(A38)>$G$1,\"\",INDIRECT(\"'\"&INDEX(таблПоиск11[Оборудование, шифр],MATCH(ROW(A38),таблПоиск11[Для расчета]))&\"'!\"&ADDRESS(ROW(A38)-INDEX(таблПоиск11[Для расчета],MATCH(ROW(A38),таблПоиск11[Для расчета]))+3,COLUMN())))","v":""},{"$f":"IF(ROW(A38)>$G$1,\"\",INDIRECT(\"'\"&INDEX(таблПоиск11[Оборудование, шифр],MATCH(ROW(A38),таблПоиск11[Для расчета]))&\"'!\"&ADDRESS(ROW(A38)-INDEX(таблПоиск11[Для расчета],MATCH(ROW(A38),таблПоиск11[Для расчета]))+3,COLUMN())))","v":""},{"$f":"IF(ROW(C38)>$G$1,\"\",INDIRECT(\"'\"&INDEX(таблПоиск11[Оборудование, шифр],MATCH(ROW(C38),таблПоиск11[Для расчета]))&\"'!\"&ADDRESS(ROW(C38)-INDEX(таблПоиск11[Для расчета],MATCH(ROW(C38),таблПоиск11[Для расчета]))+3,COLUMN())))","v":""},{"$f":"IF(ROW(A38)>$G$1,\"\",ТаблВспомогалка12[[#This Row],[Количество ДСЕ в спецификации]]*INDEX(таблПоиск11[Количество оборудования к запуску],MATCH(ROW(A38),таблПоиск11[Для расчета])))","v":""},null,null,null,{"$f":"IF(MATCH(ТаблВспомогалка12[[#This Row],[Шифр детали или СБ]],A$20:A57,)=ROW(H38),H56+1,H56)","v":29}]
[{"$f":"IF(ROW(A39)>$G$1,\"\",INDIRECT(\"'\"&INDEX(таблПоиск11[Оборудование, шифр],MATCH(ROW(A39),таблПоиск11[Для расчета]))&\"'!\"&ADDRESS(ROW(A39)-INDEX(таблПоиск11[Для расчета],MATCH(ROW(A39),таблПоиск11[Для расчета]))+3,COLUMN())))","v":""},{"$f":"IF(ROW(A39)>$G$1,\"\",INDIRECT(\"'\"&INDEX(таблПоиск11[Оборудование, шифр],MATCH(ROW(A39),таблПоиск11[Для расчета]))&\"'!\"&ADDRESS(ROW(A39)-INDEX(таблПоиск11[Для расчета],MATCH(ROW(A39),таблПоиск11[Для расчета]))+3,COLUMN())))","v":""},{"$f":"IF(ROW(C39)>$G$1,\"\",INDIRECT(\"'\"&INDEX(таблПоиск11[Оборудование, шифр],MATCH(ROW(C39),таблПоиск11[Для расчета]))&\"'!\"&ADDRESS(ROW(C39)-INDEX(таблПоиск11[Для расчета],MATCH(ROW(C39),таблПоиск11[Для расчета]))+3,COLUMN())))","v":""},{"$f":"IF(ROW(A39)>$G$1,\"\",ТаблВспомогалка12[[#This Row],[Количество ДСЕ в спецификации]]*INDEX(таблПоиск11[Количество оборудования к запуску],MATCH(ROW(A39),таблПоиск11[Для расчета])))","v":""},null,null,null,{"$f":"IF(MATCH(ТаблВспомогалка12[[#This Row],[Шифр детали или СБ]],A$20:A58,)=ROW(H39),H57+1,H57)","v":29}]
[{"$f":"IF(ROW(A40)>$G$1,\"\",INDIRECT(\"'\"&INDEX(таблПоиск11[Оборудование, шифр],MATCH(ROW(A40),таблПоиск11[Для расчета]))&\"'!\"&ADDRESS(ROW(A40)-INDEX(таблПоиск11[Для расчета],MATCH(ROW(A40),таблПоиск11[Для расчета]))+3,COLUMN())))","v":""},{"$f":"IF(ROW(A40)>$G$1,\"\",INDIRECT(\"'\"&INDEX(таблПоиск11[Оборудование, шифр],MATCH(ROW(A40),таблПоиск11[Для расчета]))&\"'!\"&ADDRESS(ROW(A40)-INDEX(таблПоиск11[Для расчета],MATCH(ROW(A40),таблПоиск11[Для расчета]))+3,COLUMN())))","v":""},{"$f":"IF(ROW(C40)>$G$1,\"\",INDIRECT(\"'\"&INDEX(таблПоиск11[Оборудование, шифр],MATCH(ROW(C40),таблПоиск11[Для расчета]))&\"'!\"&ADDRESS(ROW(C40)-INDEX(таблПоиск11[Для расчета],MATCH(ROW(C40),таблПоиск11[Для расчета]))+3,COLUMN())))","v":""},{"$f":"IF(ROW(A40)>$G$1,\"\",ТаблВспомогалка12[[#This Row],[Количество ДСЕ в спецификации]]*INDEX(таблПоиск11[Количество оборудования к запуску],MATCH(ROW(A40),таблПоиск11[Для расчета])))","v":""},null,null,null,{"$f":"IF(MATCH(ТаблВспомогалка12[[#This Row],[Шифр детали или СБ]],A$20:A59,)=ROW(H40),H58+1,H58)","v":29}]
[{"$f":"IF(ROW(A41)>$G$1,\"\",INDIRECT(\"'\"&INDEX(таблПоиск11[Оборудование, шифр],MATCH(ROW(A41),таблПоиск11[Для расчета]))&\"'!\"&ADDRESS(ROW(A41)-INDEX(таблПоиск11[Для расчета],MATCH(ROW(A41),таблПоиск11[Для расчета]))+3,COLUMN())))","v":""},{"$f":"IF(ROW(A41)>$G$1,\"\",INDIRECT(\"'\"&INDEX(таблПоиск11[Оборудование, шифр],MATCH(ROW(A41),таблПоиск11[Для расчета]))&\"'!\"&ADDRESS(ROW(A41)-INDEX(таблПоиск11[Для расчета],MATCH(ROW(A41),таблПоиск11[Для расчета]))+3,COLUMN())))","v":""},{"$f":"IF(ROW(C41)>$G$1,\"\",INDIRECT(\"'\"&INDEX(таблПоиск11[Оборудование, шифр],MATCH(ROW(C41),таблПоиск11[Для расчета]))&\"'!\"&ADDRESS(ROW(C41)-INDEX(таблПоиск11[Для расчета],MATCH(ROW(C41),таблПоиск11[Для расчета]))+3,COLUMN())))","v":""},{"$f":"IF(ROW(A41)>$G$1,\"\",ТаблВспомогалка12[[#This Row],[Количество ДСЕ в спецификации]]*INDEX(таблПоиск11[Количество оборудования к запуску],MATCH(ROW(A41),таблПоиск11[Для расчета])))","v":""},null,null,null,{"$f":"IF(MATCH(ТаблВспомогалка12[[#This Row],[Шифр детали или СБ]],A$20:A60,)=ROW(H41),H59+1,H59)","v":29}]
[{"$f":"IF(ROW(A42)>$G$1,\"\",INDIRECT(\"'\"&INDEX(таблПоиск11[Оборудование, шифр],MATCH(ROW(A42),таблПоиск11[Для расчета]))&\"'!\"&ADDRESS(ROW(A42)-INDEX(таблПоиск11[Для расчета],MATCH(ROW(A42),таблПоиск11[Для расчета]))+3,COLUMN())))","v":""},{"$f":"IF(ROW(A42)>$G$1,\"\",INDIRECT(\"'\"&INDEX(таблПоиск11[Оборудование, шифр],MATCH(ROW(A42),таблПоиск11[Для расчета]))&\"'!\"&ADDRESS(ROW(A42)-INDEX(таблПоиск11[Для расчета],MATCH(ROW(A42),таблПоиск11[Для расчета]))+3,COLUMN())))","v":""},{"$f":"IF(ROW(C42)>$G$1,\"\",INDIRECT(\"'\"&INDEX(таблПоиск11[Оборудование, шифр],MATCH(ROW(C42),таблПоиск11[Для расчета]))&\"'!\"&ADDRESS(ROW(C42)-INDEX(таблПоиск11[Для расчета],MATCH(ROW(C42),таблПоиск11[Для расчета]))+3,COLUMN())))","v":""},{"$f":"IF(ROW(A42)>$G$1,\"\",ТаблВспомогалка12[[#This Row],[Количество ДСЕ в спецификации]]*INDEX(таблПоиск11[Количество оборудования к запуску],MATCH(ROW(A42),таблПоиск11[Для расчета])))","v":""},null,null,null,{"$f":"IF(MATCH(ТаблВспомогалка12[[#This Row],[Шифр детали или СБ]],A$20:A61,)=ROW(H42),H60+1,H60)","v":29}]
[{"$f":"IF(ROW(A43)>$G$1,\"\",INDIRECT(\"'\"&INDEX(таблПоиск11[Оборудование, шифр],MATCH(ROW(A43),таблПоиск11[Для расчета]))&\"'!\"&ADDRESS(ROW(A43)-INDEX(таблПоиск11[Для расчета],MATCH(ROW(A43),таблПоиск11[Для расчета]))+3,COLUMN())))","v":""},{"$f":"IF(ROW(A43)>$G$1,\"\",INDIRECT(\"'\"&INDEX(таблПоиск11[Оборудование, шифр],MATCH(ROW(A43),таблПоиск11[Для расчета]))&\"'!\"&ADDRESS(ROW(A43)-INDEX(таблПоиск11[Для расчета],MATCH(ROW(A43),таблПоиск11[Для расчета]))+3,COLUMN())))","v":""},{"$f":"IF(ROW(C43)>$G$1,\"\",INDIRECT(\"'\"&INDEX(таблПоиск11[Оборудование, шифр],MATCH(ROW(C43),таблПоиск11[Для расчета]))&\"'!\"&ADDRESS(ROW(C43)-INDEX(таблПоиск11[Для расчета],MATCH(ROW(C43),таблПоиск11[Для расчета]))+3,COLUMN())))","v":""},{"$f":"IF(ROW(A43)>$G$1,\"\",ТаблВспомогалка12[[#This Row],[Количество ДСЕ в спецификации]]*INDEX(таблПоиск11[Количество оборудования к запуску],MATCH(ROW(A43),таблПоиск11[Для расчета])))","v":""},null,null,null,{"$f":"IF(MATCH(ТаблВспомогалка12[[#This Row],[Шифр детали или СБ]],A$20:A62,)=ROW(H43),H61+1,H61)","v":29}]
[{"$f":"IF(ROW(A44)>$G$1,\"\",INDIRECT(\"'\"&INDEX(таблПоиск11[Оборудование, шифр],MATCH(ROW(A44),таблПоиск11[Для расчета]))&\"'!\"&ADDRESS(ROW(A44)-INDEX(таблПоиск11[Для расчета],MATCH(ROW(A44),таблПоиск11[Для расчета]))+3,COLUMN())))","v":""},{"$f":"IF(ROW(A44)>$G$1,\"\",INDIRECT(\"'\"&INDEX(таблПоиск11[Оборудование, шифр],MATCH(ROW(A44),таблПоиск11[Для расчета]))&\"'!\"&ADDRESS(ROW(A44)-INDEX(таблПоиск11[Для расчета],MATCH(ROW(A44),таблПоиск11[Для расчета]))+3,COLUMN())))","v":""},{"$f":"IF(ROW(C44)>$G$1,\"\",INDIRECT(\"'\"&INDEX(таблПоиск11[Оборудование, шифр],MATCH(ROW(C44),таблПоиск11[Для расчета]))&\"'!\"&ADDRESS(ROW(C44)-INDEX(таблПоиск11[Для расчета],MATCH(ROW(C44),таблПоиск11[Для расчета]))+3,COLUMN())))","v":""},{"$f":"IF(ROW(A44)>$G$1,\"\",ТаблВспомогалка12[[#This Row],[Количество ДСЕ в спецификации]]*INDEX(таблПоиск11[Количество оборудования к запуску],MATCH(ROW(A44),таблПоиск11[Для расчета])))","v":""},null,null,null,{"$f":"IF(MATCH(ТаблВспомогалка12[[#This Row],[Шифр детали или СБ]],A$20:A63,)=ROW(H44),H62+1,H62)","v":29}]
[{"$f":"IF(ROW(A45)>$G$1,\"\",INDIRECT(\"'\"&INDEX(таблПоиск11[Оборудование, шифр],MATCH(ROW(A45),таблПоиск11[Для расчета]))&\"'!\"&ADDRESS(ROW(A45)-INDEX(таблПоиск11[Для расчета],MATCH(ROW(A45),таблПоиск11[Для расчета]))+3,COLUMN())))","v":""},{"$f":"IF(ROW(A45)>$G$1,\"\",INDIRECT(\"'\"&INDEX(таблПоиск11[Оборудование, шифр],MATCH(ROW(A45),таблПоиск11[Для расчета]))&\"'!\"&ADDRESS(ROW(A45)-INDEX(таблПоиск11[Для расчета],MATCH(ROW(A45),таблПоиск11[Для расчета]))+3,COLUMN())))","v":""},{"$f":"IF(ROW(C45)>$G$1,\"\",INDIRECT(\"'\"&INDEX(таблПоиск11[Оборудование, шифр],MATCH(ROW(C45),таблПоиск11[Для расчета]))&\"'!\"&ADDRESS(ROW(C45)-INDEX(таблПоиск11[Для расчета],MATCH(ROW(C45),таблПоиск11[Для расчета]))+3,COLUMN())))","v":""},{"$f":"IF(ROW(A45)>$G$1,\"\",ТаблВспомогалка12[[#This Row],[Количество ДСЕ в спецификации]]*INDEX(таблПоиск11[Количество оборудования к запуску],MATCH(ROW(A45),таблПоиск11[Для расчета])))","v":""},null,null,null,{"$f":"IF(MATCH(ТаблВспомогалка12[[#This Row],[Шифр детали или СБ]],A$20:A64,)=ROW(H45),H63+1,H63)","v":29}]
[{"$f":"IF(ROW(A46)>$G$1,\"\",INDIRECT(\"'\"&INDEX(таблПоиск11[Оборудование, шифр],MATCH(ROW(A46),таблПоиск11[Для расчета]))&\"'!\"&ADDRESS(ROW(A46)-INDEX(таблПоиск11[Для расчета],MATCH(ROW(A46),таблПоиск11[Для расчета]))+3,COLUMN())))","v":""},{"$f":"IF(ROW(A46)>$G$1,\"\",INDIRECT(\"'\"&INDEX(таблПоиск11[Оборудование, шифр],MATCH(ROW(A46),таблПоиск11[Для расчета]))&\"'!\"&ADDRESS(ROW(A46)-INDEX(таблПоиск11[Для расчета],MATCH(ROW(A46),таблПоиск11[Для расчета]))+3,COLUMN())))","v":""},{"$f":"IF(ROW(C46)>$G$1,\"\",INDIRECT(\"'\"&INDEX(таблПоиск11[Оборудование, шифр],MATCH(ROW(C46),таблПоиск11[Для расчета]))&\"'!\"&ADDRESS(ROW(C46)-INDEX(таблПоиск11[Для расчета],MATCH(ROW(C46),таблПоиск11[Для расчета]))+3,COLUMN())))","v":""},{"$f":"IF(ROW(A46)>$G$1,\"\",ТаблВспомогалка12[[#This Row],[Количество ДСЕ в спецификации]]*INDEX(таблПоиск11[Количество оборудования к запуску],MATCH(ROW(A46),таблПоиск11[Для расчета])))","v":""},null,null,null,{"$f":"IF(MATCH(ТаблВспомогалка12[[#This Row],[Шифр детали или СБ]],A$20:A65,)=ROW(H46),H64+1,H64)","v":29}]
[{"$f":"IF(ROW(A47)>$G$1,\"\",INDIRECT(\"'\"&INDEX(таблПоиск11[Оборудование, шифр],MATCH(ROW(A47),таблПоиск11[Для расчета]))&\"'!\"&ADDRESS(ROW(A47)-INDEX(таблПоиск11[Для расчета],MATCH(ROW(A47),таблПоиск11[Для расчета]))+3,COLUMN())))","v":""},{"$f":"IF(ROW(A47)>$G$1,\"\",INDIRECT(\"'\"&INDEX(таблПоиск11[Оборудование, шифр],MATCH(ROW(A47),таблПоиск11[Для расчета]))&\"'!\"&ADDRESS(ROW(A47)-INDEX(таблПоиск11[Для расчета],MATCH(ROW(A47),таблПоиск11[Для расчета]))+3,COLUMN())))","v":""},{"$f":"IF(ROW(C47)>$G$1,\"\",INDIRECT(\"'\"&INDEX(таблПоиск11[Оборудование, шифр],MATCH(ROW(C47),таблПоиск11[Для расчета]))&\"'!\"&ADDRESS(ROW(C47)-INDEX(таблПоиск11[Для расчета],MATCH(ROW(C47),таблПоиск11[Для расчета]))+3,COLUMN())))","v":""},{"$f":"IF(ROW(A47)>$G$1,\"\",ТаблВспомогалка12[[#This Row],[Количество ДСЕ в спецификации]]*INDEX(таблПоиск11[Количество оборудования к запуску],MATCH(ROW(A47),таблПоиск11[Для расчета])))","v":""},null,null,null,{"$f":"IF(MATCH(ТаблВспомогалка12[[#This Row],[Шифр детали или СБ]],A$20:A66,)=ROW(H47),H65+1,H65)","v":29}]
[{"$f":"IF(ROW(A48)>$G$1,\"\",INDIRECT(\"'\"&INDEX(таблПоиск11[Оборудование, шифр],MATCH(ROW(A48),таблПоиск11[Для расчета]))&\"'!\"&ADDRESS(ROW(A48)-INDEX(таблПоиск11[Для расчета],MATCH(ROW(A48),таблПоиск11[Для расчета]))+3,COLUMN())))","v":""},{"$f":"IF(ROW(A48)>$G$1,\"\",INDIRECT(\"'\"&INDEX(таблПоиск11[Оборудование, шифр],MATCH(ROW(A48),таблПоиск11[Для расчета]))&\"'!\"&ADDRESS(ROW(A48)-INDEX(таблПоиск11[Для расчета],MATCH(ROW(A48),таблПоиск11[Для расчета]))+3,COLUMN())))","v":""},{"$f":"IF(ROW(C48)>$G$1,\"\",INDIRECT(\"'\"&INDEX(таблПоиск11[Оборудование, шифр],MATCH(ROW(C48),таблПоиск11[Для расчета]))&\"'!\"&ADDRESS(ROW(C48)-INDEX(таблПоиск11[Для расчета],MATCH(ROW(C48),таблПоиск11[Для расчета]))+3,COLUMN())))","v":""},{"$f":"IF(ROW(A48)>$G$1,\"\",ТаблВспомогалка12[[#This Row],[Количество ДСЕ в спецификации]]*INDEX(таблПоиск11[Количество оборудования к запуску],MATCH(ROW(A48),таблПоиск11[Для расчета])))","v":""},null,null,null,{"$f":"IF(MATCH(ТаблВспомогалка12[[#This Row],[Шифр детали или СБ]],A$20:A67,)=ROW(H48),H66+1,H66)","v":29}]
[{"$f":"IF(ROW(A49)>$G$1,\"\",INDIRECT(\"'\"&INDEX(таблПоиск11[Оборудование, шифр],MATCH(ROW(A49),таблПоиск11[Для расчета]))&\"'!\"&ADDRESS(ROW(A49)-INDEX(таблПоиск11[Для расчета],MATCH(ROW(A49),таблПоиск11[Для расчета]))+3,COLUMN())))","v":""},{"$f":"IF(ROW(A49)>$G$1,\"\",INDIRECT(\"'\"&INDEX(таблПоиск11[Оборудование, шифр],MATCH(ROW(A49),таблПоиск11[Для расчета]))&\"'!\"&ADDRESS(ROW(A49)-INDEX(таблПоиск11[Для расчета],MATCH(ROW(A49),таблПоиск11[Для расчета]))+3,COLUMN())))","v":""},{"$f":"IF(ROW(C49)>$G$1,\"\",INDIRECT(\"'\"&INDEX(таблПоиск11[Оборудование, шифр],MATCH(ROW(C49),таблПоиск11[Для расчета]))&\"'!\"&ADDRESS(ROW(C49)-INDEX(таблПоиск11[Для расчета],MATCH(ROW(C49),таблПоиск11[Для расчета]))+3,COLUMN())))","v":""},{"$f":"IF(ROW(A49)>$G$1,\"\",ТаблВспомогалка12[[#This Row],[Количество ДСЕ в спецификации]]*INDEX(таблПоиск11[Количество оборудования к запуску],MATCH(ROW(A49),таблПоиск11[Для расчета])))","v":""},null,null,null,{"$f":"IF(MATCH(ТаблВспомогалка12[[#This Row],[Шифр детали или СБ]],A$20:A68,)=ROW(H49),H67+1,H67)","v":29}]
[{"$f":"IF(ROW(A50)>$G$1,\"\",INDIRECT(\"'\"&INDEX(таблПоиск11[Оборудование, шифр],MATCH(ROW(A50),таблПоиск11[Для расчета]))&\"'!\"&ADDRESS(ROW(A50)-INDEX(таблПоиск11[Для расчета],MATCH(ROW(A50),таблПоиск11[Для расчета]))+3,COLUMN())))","v":""},{"$f":"IF(ROW(A50)>$G$1,\"\",INDIRECT(\"'\"&INDEX(таблПоиск11[Оборудование, шифр],MATCH(ROW(A50),таблПоиск11[Для расчета]))&\"'!\"&ADDRESS(ROW(A50)-INDEX(таблПоиск11[Для расчета],MATCH(ROW(A50),таблПоиск11[Для расчета]))+3,COLUMN())))","v":""},{"$f":"IF(ROW(C50)>$G$1,\"\",INDIRECT(\"'\"&INDEX(таблПоиск11[Оборудование, шифр],MATCH(ROW(C50),таблПоиск11[Для расчета]))&\"'!\"&ADDRESS(ROW(C50)-INDEX(таблПоиск11[Для расчета],MATCH(ROW(C50),таблПоиск11[Для расчета]))+3,COLUMN())))","v":""},{"$f":"IF(ROW(A50)>$G$1,\"\",ТаблВспомогалка12[[#This Row],[Количество ДСЕ в спецификации]]*INDEX(таблПоиск11[Количество оборудования к запуску],MATCH(ROW(A50),таблПоиск11[Для расчета])))","v":""},null,null,null,{"$f":"IF(MATCH(ТаблВспомогалка12[[#This Row],[Шифр детали или СБ]],A$20:A69,)=ROW(H50),H68+1,H68)","v":29}]
[{"$f":"IF(ROW(A51)>$G$1,\"\",INDIRECT(\"'\"&INDEX(таблПоиск11[Оборудование, шифр],MATCH(ROW(A51),таблПоиск11[Для расчета]))&\"'!\"&ADDRESS(ROW(A51)-INDEX(таблПоиск11[Для расчета],MATCH(ROW(A51),таблПоиск11[Для расчета]))+3,COLUMN())))","v":""},{"$f":"IF(ROW(A51)>$G$1,\"\",INDIRECT(\"'\"&INDEX(таблПоиск11[Оборудование, шифр],MATCH(ROW(A51),таблПоиск11[Для расчета]))&\"'!\"&ADDRESS(ROW(A51)-INDEX(таблПоиск11[Для расчета],MATCH(ROW(A51),таблПоиск11[Для расчета]))+3,COLUMN())))","v":""},{"$f":"IF(ROW(C51)>$G$1,\"\",INDIRECT(\"'\"&INDEX(таблПоиск11[Оборудование, шифр],MATCH(ROW(C51),таблПоиск11[Для расчета]))&\"'!\"&ADDRESS(ROW(C51)-INDEX(таблПоиск11[Для расчета],MATCH(ROW(C51),таблПоиск11[Для расчета]))+3,COLUMN())))","v":""},{"$f":"IF(ROW(A51)>$G$1,\"\",ТаблВспомогалка12[[#This Row],[Количество ДСЕ в спецификации]]*INDEX(таблПоиск11[Количество оборудования к запуску],MATCH(ROW(A51),таблПоиск11[Для расчета])))","v":""},null,null,null,{"$f":"IF(MATCH(ТаблВспомогалка12[[#This Row],[Шифр детали или СБ]],A$20:A70,)=ROW(H51),H69+1,H69)","v":29}]
[{"$f":"IF(ROW(A52)>$G$1,\"\",INDIRECT(\"'\"&INDEX(таблПоиск11[Оборудование, шифр],MATCH(ROW(A52),таблПоиск11[Для расчета]))&\"'!\"&ADDRESS(ROW(A52)-INDEX(таблПоиск11[Для расчета],MATCH(ROW(A52),таблПоиск11[Для расчета]))+3,COLUMN())))","v":""},{"$f":"IF(ROW(A52)>$G$1,\"\",INDIRECT(\"'\"&INDEX(таблПоиск11[Оборудование, шифр],MATCH(ROW(A52),таблПоиск11[Для расчета]))&\"'!\"&ADDRESS(ROW(A52)-INDEX(таблПоиск11[Для расчета],MATCH(ROW(A52),таблПоиск11[Для расчета]))+3,COLUMN())))","v":""},{"$f":"IF(ROW(C52)>$G$1,\"\",INDIRECT(\"'\"&INDEX(таблПоиск11[Оборудование, шифр],MATCH(ROW(C52),таблПоиск11[Для расчета]))&\"'!\"&ADDRESS(ROW(C52)-INDEX(таблПоиск11[Для расчета],MATCH(ROW(C52),таблПоиск11[Для расчета]))+3,COLUMN())))","v":""},{"$f":"IF(ROW(A52)>$G$1,\"\",ТаблВспомогалка12[[#This Row],[Количество ДСЕ в спецификации]]*INDEX(таблПоиск11[Количество оборудования к запуску],MATCH(ROW(A52),таблПоиск11[Для расчета])))","v":""},null,null,null,{"$f":"IF(MATCH(ТаблВспомогалка12[[#This Row],[Шифр детали или СБ]],A$20:A71,)=ROW(H52),H70+1,H70)","v":29}]
[{"$f":"IF(ROW(A53)>$G$1,\"\",INDIRECT(\"'\"&INDEX(таблПоиск11[Оборудование, шифр],MATCH(ROW(A53),таблПоиск11[Для расчета]))&\"'!\"&ADDRESS(ROW(A53)-INDEX(таблПоиск11[Для расчета],MATCH(ROW(A53),таблПоиск11[Для расчета]))+3,COLUMN())))","v":""},{"$f":"IF(ROW(A53)>$G$1,\"\",INDIRECT(\"'\"&INDEX(таблПоиск11[Оборудование, шифр],MATCH(ROW(A53),таблПоиск11[Для расчета]))&\"'!\"&ADDRESS(ROW(A53)-INDEX(таблПоиск11[Для расчета],MATCH(ROW(A53),таблПоиск11[Для расчета]))+3,COLUMN())))","v":""},{"$f":"IF(ROW(C53)>$G$1,\"\",INDIRECT(\"'\"&INDEX(таблПоиск11[Оборудование, шифр],MATCH(ROW(C53),таблПоиск11[Для расчета]))&\"'!\"&ADDRESS(ROW(C53)-INDEX(таблПоиск11[Для расчета],MATCH(ROW(C53),таблПоиск11[Для расчета]))+3,COLUMN())))","v":""},{"$f":"IF(ROW(A53)>$G$1,\"\",ТаблВспомогалка12[[#This Row],[Количество ДСЕ в спецификации]]*INDEX(таблПоиск11[Количество оборудования к запуску],MATCH(ROW(A53),таблПоиск11[Для расчета])))","v":""},null,null,null,{"$f":"IF(MATCH(ТаблВспомогалка12[[#This Row],[Шифр детали или СБ]],A$20:A72,)=ROW(H53),H71+1,H71)","v":29}]
[{"$f":"IF(ROW(A54)>$G$1,\"\",INDIRECT(\"'\"&INDEX(таблПоиск11[Оборудование, шифр],MATCH(ROW(A54),таблПоиск11[Для расчета]))&\"'!\"&ADDRESS(ROW(A54)-INDEX(таблПоиск11[Для расчета],MATCH(ROW(A54),таблПоиск11[Для расчета]))+3,COLUMN())))","v":""},{"$f":"IF(ROW(A54)>$G$1,\"\",INDIRECT(\"'\"&INDEX(таблПоиск11[Оборудование, шифр],MATCH(ROW(A54),таблПоиск11[Для расчета]))&\"'!\"&ADDRESS(ROW(A54)-INDEX(таблПоиск11[Для расчета],MATCH(ROW(A54),таблПоиск11[Для расчета]))+3,COLUMN())))","v":""},{"$f":"IF(ROW(C54)>$G$1,\"\",INDIRECT(\"'\"&INDEX(таблПоиск11[Оборудование, шифр],MATCH(ROW(C54),таблПоиск11[Для расчета]))&\"'!\"&ADDRESS(ROW(C54)-INDEX(таблПоиск11[Для расчета],MATCH(ROW(C54),таблПоиск11[Для расчета]))+3,COLUMN())))","v":""},{"$f":"IF(ROW(A54)>$G$1,\"\",ТаблВспомогалка12[[#This Row],[Количество ДСЕ в спецификации]]*INDEX(таблПоиск11[Количество оборудования к запуску],MATCH(ROW(A54),таблПоиск11[Для расчета])))","v":""},null,null,null,{"$f":"IF(MATCH(ТаблВспомогалка12[[#This Row],[Шифр детали или СБ]],A$20:A73,)=ROW(H54),H72+1,H72)","v":29}]
[{"$f":"IF(ROW(A55)>$G$1,\"\",INDIRECT(\"'\"&INDEX(таблПоиск11[Оборудование, шифр],MATCH(ROW(A55),таблПоиск11[Для расчета]))&\"'!\"&ADDRESS(ROW(A55)-INDEX(таблПоиск11[Для расчета],MATCH(ROW(A55),таблПоиск11[Для расчета]))+3,COLUMN())))","v":""},{"$f":"IF(ROW(A55)>$G$1,\"\",INDIRECT(\"'\"&INDEX(таблПоиск11[Оборудование, шифр],MATCH(ROW(A55),таблПоиск11[Для расчета]))&\"'!\"&ADDRESS(ROW(A55)-INDEX(таблПоиск11[Для расчета],MATCH(ROW(A55),таблПоиск11[Для расчета]))+3,COLUMN())))","v":""},{"$f":"IF(ROW(C55)>$G$1,\"\",INDIRECT(\"'\"&INDEX(таблПоиск11[Оборудование, шифр],MATCH(ROW(C55),таблПоиск11[Для расчета]))&\"'!\"&ADDRESS(ROW(C55)-INDEX(таблПоиск11[Для расчета],MATCH(ROW(C55),таблПоиск11[Для расчета]))+3,COLUMN())))","v":""},{"$f":"IF(ROW(A55)>$G$1,\"\",ТаблВспомогалка12[[#This Row],[Количество ДСЕ в спецификации]]*INDEX(таблПоиск11[Количество оборудования к запуску],MATCH(ROW(A55),таблПоиск11[Для расчета])))","v":""},null,null,null,{"$f":"IF(MATCH(ТаблВспомогалка12[[#This Row],[Шифр детали или СБ]],A$20:A74,)=ROW(H55),H73+1,H73)","v":29}]
[{"$f":"IF(ROW(A56)>$G$1,\"\",INDIRECT(\"'\"&INDEX(таблПоиск11[Оборудование, шифр],MATCH(ROW(A56),таблПоиск11[Для расчета]))&\"'!\"&ADDRESS(ROW(A56)-INDEX(таблПоиск11[Для расчета],MATCH(ROW(A56),таблПоиск11[Для расчета]))+3,COLUMN())))","v":""},{"$f":"IF(ROW(A56)>$G$1,\"\",INDIRECT(\"'\"&INDEX(таблПоиск11[Оборудование, шифр],MATCH(ROW(A56),таблПоиск11[Для расчета]))&\"'!\"&ADDRESS(ROW(A56)-INDEX(таблПоиск11[Для расчета],MATCH(ROW(A56),таблПоиск11[Для расчета]))+3,COLUMN())))","v":""},{"$f":"IF(ROW(C56)>$G$1,\"\",INDIRECT(\"'\"&INDEX(таблПоиск11[Оборудование, шифр],MATCH(ROW(C56),таблПоиск11[Для расчета]))&\"'!\"&ADDRESS(ROW(C56)-INDEX(таблПоиск11[Для расчета],MATCH(ROW(C56),таблПоиск11[Для расчета]))+3,COLUMN())))","v":""},{"$f":"IF(ROW(A56)>$G$1,\"\",ТаблВспомогалка12[[#This Row],[Количество ДСЕ в спецификации]]*INDEX(таблПоиск11[Количество оборудования к запуску],MATCH(ROW(A56),таблПоиск11[Для расчета])))","v":""},null,null,null,{"$f":"IF(MATCH(ТаблВспомогалка12[[#This Row],[Шифр детали или СБ]],A$20:A75,)=ROW(H56),H74+1,H74)","v":29}]
[{"$f":"IF(ROW(A57)>$G$1,\"\",INDIRECT(\"'\"&INDEX(таблПоиск11[Оборудование, шифр],MATCH(ROW(A57),таблПоиск11[Для расчета]))&\"'!\"&ADDRESS(ROW(A57)-INDEX(таблПоиск11[Для расчета],MATCH(ROW(A57),таблПоиск11[Для расчета]))+3,COLUMN())))","v":""},{"$f":"IF(ROW(A57)>$G$1,\"\",INDIRECT(\"'\"&INDEX(таблПоиск11[Оборудование, шифр],MATCH(ROW(A57),таблПоиск11[Для расчета]))&\"'!\"&ADDRESS(ROW(A57)-INDEX(таблПоиск11[Для расчета],MATCH(ROW(A57),таблПоиск11[Для расчета]))+3,COLUMN())))","v":""},{"$f":"IF(ROW(C57)>$G$1,\"\",INDIRECT(\"'\"&INDEX(таблПоиск11[Оборудование, шифр],MATCH(ROW(C57),таблПоиск11[Для расчета]))&\"'!\"&ADDRESS(ROW(C57)-INDEX(таблПоиск11[Для расчета],MATCH(ROW(C57),таблПоиск11[Для расчета]))+3,COLUMN())))","v":""},{"$f":"IF(ROW(A57)>$G$1,\"\",ТаблВспомогалка12[[#This Row],[Количество ДСЕ в спецификации]]*INDEX(таблПоиск11[Количество оборудования к запуску],MATCH(ROW(A57),таблПоиск11[Для расчета])))","v":""},null,null,null,{"$f":"IF(MATCH(ТаблВспомогалка12[[#This Row],[Шифр детали или СБ]],A$20:A76,)=ROW(H57),H75+1,H75)","v":29}]
[{"$f":"IF(ROW(A58)>$G$1,\"\",INDIRECT(\"'\"&INDEX(таблПоиск11[Оборудование, шифр],MATCH(ROW(A58),таблПоиск11[Для расчета]))&\"'!\"&ADDRESS(ROW(A58)-INDEX(таблПоиск11[Для расчета],MATCH(ROW(A58),таблПоиск11[Для расчета]))+3,COLUMN())))","v":""},{"$f":"IF(ROW(A58)>$G$1,\"\",INDIRECT(\"'\"&INDEX(таблПоиск11[Оборудование, шифр],MATCH(ROW(A58),таблПоиск11[Для расчета]))&\"'!\"&ADDRESS(ROW(A58)-INDEX(таблПоиск11[Для расчета],MATCH(ROW(A58),таблПоиск11[Для расчета]))+3,COLUMN())))","v":""},{"$f":"IF(ROW(C58)>$G$1,\"\",INDIRECT(\"'\"&INDEX(таблПоиск11[Оборудование, шифр],MATCH(ROW(C58),таблПоиск11[Для расчета]))&\"'!\"&ADDRESS(ROW(C58)-INDEX(таблПоиск11[Для расчета],MATCH(ROW(C58),таблПоиск11[Для расчета]))+3,COLUMN())))","v":""},{"$f":"IF(ROW(A58)>$G$1,\"\",ТаблВспомогалка12[[#This Row],[Количество ДСЕ в спецификации]]*INDEX(таблПоиск11[Количество оборудования к запуску],MATCH(ROW(A58),таблПоиск11[Для расчета])))","v":""},null,null,null,{"$f":"IF(MATCH(ТаблВспомогалка12[[#This Row],[Шифр детали или СБ]],A$20:A77,)=ROW(H58),H76+1,H76)","v":29}]
[{"$f":"IF(ROW(A59)>$G$1,\"\",INDIRECT(\"'\"&INDEX(таблПоиск11[Оборудование, шифр],MATCH(ROW(A59),таблПоиск11[Для расчета]))&\"'!\"&ADDRESS(ROW(A59)-INDEX(таблПоиск11[Для расчета],MATCH(ROW(A59),таблПоиск11[Для расчета]))+3,COLUMN())))","v":""},{"$f":"IF(ROW(A59)>$G$1,\"\",INDIRECT(\"'\"&INDEX(таблПоиск11[Оборудование, шифр],MATCH(ROW(A59),таблПоиск11[Для расчета]))&\"'!\"&ADDRESS(ROW(A59)-INDEX(таблПоиск11[Для расчета],MATCH(ROW(A59),таблПоиск11[Для расчета]))+3,COLUMN())))","v":""},{"$f":"IF(ROW(C59)>$G$1,\"\",INDIRECT(\"'\"&INDEX(таблПоиск11[Оборудование, шифр],MATCH(ROW(C59),таблПоиск11[Для расчета]))&\"'!\"&ADDRESS(ROW(C59)-INDEX(таблПоиск11[Для расчета],MATCH(ROW(C59),таблПоиск11[Для расчета]))+3,COLUMN())))","v":""},{"$f":"IF(ROW(A59)>$G$1,\"\",ТаблВспомогалка12[[#This Row],[Количество ДСЕ в спецификации]]*INDEX(таблПоиск11[Количество оборудования к запуску],MATCH(ROW(A59),таблПоиск11[Для расчета])))","v":""},null,null,null,{"$f":"IF(MATCH(ТаблВспомогалка12[[#This Row],[Шифр детали или СБ]],A$20:A78,)=ROW(H59),H77+1,H77)","v":29}]
[{"$f":"IF(ROW(A60)>$G$1,\"\",INDIRECT(\"'\"&INDEX(таблПоиск11[Оборудование, шифр],MATCH(ROW(A60),таблПоиск11[Для расчета]))&\"'!\"&ADDRESS(ROW(A60)-INDEX(таблПоиск11[Для расчета],MATCH(ROW(A60),таблПоиск11[Для расчета]))+3,COLUMN())))","v":""},{"$f":"IF(ROW(A60)>$G$1,\"\",INDIRECT(\"'\"&INDEX(таблПоиск11[Оборудование, шифр],MATCH(ROW(A60),таблПоиск11[Для расчета]))&\"'!\"&ADDRESS(ROW(A60)-INDEX(таблПоиск11[Для расчета],MATCH(ROW(A60),таблПоиск11[Для расчета]))+3,COLUMN())))","v":""},{"$f":"IF(ROW(C60)>$G$1,\"\",INDIRECT(\"'\"&INDEX(таблПоиск11[Оборудование, шифр],MATCH(ROW(C60),таблПоиск11[Для расчета]))&\"'!\"&ADDRESS(ROW(C60)-INDEX(таблПоиск11[Для расчета],MATCH(ROW(C60),таблПоиск11[Для расчета]))+3,COLUMN())))","v":""},{"$f":"IF(ROW(A60)>$G$1,\"\",ТаблВспомогалка12[[#This Row],[Количество ДСЕ в спецификации]]*INDEX(таблПоиск11[Количество оборудования к запуску],MATCH(ROW(A60),таблПоиск11[Для расчета])))","v":""},null,null,null,{"$f":"IF(MATCH(ТаблВспомогалка12[[#This Row],[Шифр детали или СБ]],A$20:A79,)=ROW(H60),H78+1,H78)","v":29}]
[{"$f":"IF(ROW(A61)>$G$1,\"\",INDIRECT(\"'\"&INDEX(таблПоиск11[Оборудование, шифр],MATCH(ROW(A61),таблПоиск11[Для расчета]))&\"'!\"&ADDRESS(ROW(A61)-INDEX(таблПоиск11[Для расчета],MATCH(ROW(A61),таблПоиск11[Для расчета]))+3,COLUMN())))","v":""},{"$f":"IF(ROW(A61)>$G$1,\"\",INDIRECT(\"'\"&INDEX(таблПоиск11[Оборудование, шифр],MATCH(ROW(A61),таблПоиск11[Для расчета]))&\"'!\"&ADDRESS(ROW(A61)-INDEX(таблПоиск11[Для расчета],MATCH(ROW(A61),таблПоиск11[Для расчета]))+3,COLUMN())))","v":""},{"$f":"IF(ROW(C61)>$G$1,\"\",INDIRECT(\"'\"&INDEX(таблПоиск11[Оборудование, шифр],MATCH(ROW(C61),таблПоиск11[Для расчета]))&\"'!\"&ADDRESS(ROW(C61)-INDEX(таблПоиск11[Для расчета],MATCH(ROW(C61),таблПоиск11[Для расчета]))+3,COLUMN())))","v":""},{"$f":"IF(ROW(A61)>$G$1,\"\",ТаблВспомогалка12[[#This Row],[Количество ДСЕ в спецификации]]*INDEX(таблПоиск11[Количество оборудования к запуску],MATCH(ROW(A61),таблПоиск11[Для расчета])))","v":""},null,null,null,{"$f":"IF(MATCH(ТаблВспомогалка12[[#This Row],[Шифр детали или СБ]],A$20:A80,)=ROW(H61),H79+1,H79)","v":29}]
[{"$f":"IF(ROW(A62)>$G$1,\"\",INDIRECT(\"'\"&INDEX(таблПоиск11[Оборудование, шифр],MATCH(ROW(A62),таблПоиск11[Для расчета]))&\"'!\"&ADDRESS(ROW(A62)-INDEX(таблПоиск11[Для расчета],MATCH(ROW(A62),таблПоиск11[Для расчета]))+3,COLUMN())))","v":""},{"$f":"IF(ROW(A62)>$G$1,\"\",INDIRECT(\"'\"&INDEX(таблПоиск11[Оборудование, шифр],MATCH(ROW(A62),таблПоиск11[Для расчета]))&\"'!\"&ADDRESS(ROW(A62)-INDEX(таблПоиск11[Для расчета],MATCH(ROW(A62),таблПоиск11[Для расчета]))+3,COLUMN())))","v":""},{"$f":"IF(ROW(C62)>$G$1,\"\",INDIRECT(\"'\"&INDEX(таблПоиск11[Оборудование, шифр],MATCH(ROW(C62),таблПоиск11[Для расчета]))&\"'!\"&ADDRESS(ROW(C62)-INDEX(таблПоиск11[Для расчета],MATCH(ROW(C62),таблПоиск11[Для расчета]))+3,COLUMN())))","v":""},{"$f":"IF(ROW(A62)>$G$1,\"\",ТаблВспомогалка12[[#This Row],[Количество ДСЕ в спецификации]]*INDEX(таблПоиск11[Количество оборудования к запуску],MATCH(ROW(A62),таблПоиск11[Для расчета])))","v":""},null,null,null,{"$f":"IF(MATCH(ТаблВспомогалка12[[#This Row],[Шифр детали или СБ]],A$20:A81,)=ROW(H62),H80+1,H80)","v":29}]
[{"$f":"IF(ROW(A63)>$G$1,\"\",INDIRECT(\"'\"&INDEX(таблПоиск11[Оборудование, шифр],MATCH(ROW(A63),таблПоиск11[Для расчета]))&\"'!\"&ADDRESS(ROW(A63)-INDEX(таблПоиск11[Для расчета],MATCH(ROW(A63),таблПоиск11[Для расчета]))+3,COLUMN())))","v":""},{"$f":"IF(ROW(A63)>$G$1,\"\",INDIRECT(\"'\"&INDEX(таблПоиск11[Оборудование, шифр],MATCH(ROW(A63),таблПоиск11[Для расчета]))&\"'!\"&ADDRESS(ROW(A63)-INDEX(таблПоиск11[Для расчета],MATCH(ROW(A63),таблПоиск11[Для расчета]))+3,COLUMN())))","v":""},{"$f":"IF(ROW(C63)>$G$1,\"\",INDIRECT(\"'\"&INDEX(таблПоиск11[Оборудование, шифр],MATCH(ROW(C63),таблПоиск11[Для расчета]))&\"'!\"&ADDRESS(ROW(C63)-INDEX(таблПоиск11[Для расчета],MATCH(ROW(C63),таблПоиск11[Для расчета]))+3,COLUMN())))","v":""},{"$f":"IF(ROW(A63)>$G$1,\"\",ТаблВспомогалка12[[#This Row],[Количество ДСЕ в спецификации]]*INDEX(таблПоиск11[Количество оборудования к запуску],MATCH(ROW(A63),таблПоиск11[Для расчета])))","v":""},null,null,null,{"$f":"IF(MATCH(ТаблВспомогалка12[[#This Row],[Шифр детали или СБ]],A$20:A82,)=ROW(H63),H81+1,H81)","v":29}]
[{"$f":"IF(ROW(A64)>$G$1,\"\",INDIRECT(\"'\"&INDEX(таблПоиск11[Оборудование, шифр],MATCH(ROW(A64),таблПоиск11[Для расчета]))&\"'!\"&ADDRESS(ROW(A64)-INDEX(таблПоиск11[Для расчета],MATCH(ROW(A64),таблПоиск11[Для расчета]))+3,COLUMN())))","v":""},{"$f":"IF(ROW(A64)>$G$1,\"\",INDIRECT(\"'\"&INDEX(таблПоиск11[Оборудование, шифр],MATCH(ROW(A64),таблПоиск11[Для расчета]))&\"'!\"&ADDRESS(ROW(A64)-INDEX(таблПоиск11[Для расчета],MATCH(ROW(A64),таблПоиск11[Для расчета]))+3,COLUMN())))","v":""},{"$f":"IF(ROW(C64)>$G$1,\"\",INDIRECT(\"'\"&INDEX(таблПоиск11[Оборудование, шифр],MATCH(ROW(C64),таблПоиск11[Для расчета]))&\"'!\"&ADDRESS(ROW(C64)-INDEX(таблПоиск11[Для расчета],MATCH(ROW(C64),таблПоиск11[Для расчета]))+3,COLUMN())))","v":""},{"$f":"IF(ROW(A64)>$G$1,\"\",ТаблВспомогалка12[[#This Row],[Количество ДСЕ в спецификации]]*INDEX(таблПоиск11[Количество оборудования к запуску],MATCH(ROW(A64),таблПоиск11[Для расчета])))","v":""},null,null,null,{"$f":"IF(MATCH(ТаблВспомогалка12[[#This Row],[Шифр детали или СБ]],A$20:A83,)=ROW(H64),H82+1,H82)","v":29}]
[{"$f":"IF(ROW(A65)>$G$1,\"\",INDIRECT(\"'\"&INDEX(таблПоиск11[Оборудование, шифр],MATCH(ROW(A65),таблПоиск11[Для расчета]))&\"'!\"&ADDRESS(ROW(A65)-INDEX(таблПоиск11[Для расчета],MATCH(ROW(A65),таблПоиск11[Для расчета]))+3,COLUMN())))","v":""},{"$f":"IF(ROW(A65)>$G$1,\"\",INDIRECT(\"'\"&INDEX(таблПоиск11[Оборудование, шифр],MATCH(ROW(A65),таблПоиск11[Для расчета]))&\"'!\"&ADDRESS(ROW(A65)-INDEX(таблПоиск11[Для расчета],MATCH(ROW(A65),таблПоиск11[Для расчета]))+3,COLUMN())))","v":""},{"$f":"IF(ROW(C65)>$G$1,\"\",INDIRECT(\"'\"&INDEX(таблПоиск11[Оборудование, шифр],MATCH(ROW(C65),таблПоиск11[Для расчета]))&\"'!\"&ADDRESS(ROW(C65)-INDEX(таблПоиск11[Для расчета],MATCH(ROW(C65),таблПоиск11[Для расчета]))+3,COLUMN())))","v":""},{"$f":"IF(ROW(A65)>$G$1,\"\",ТаблВспомогалка12[[#This Row],[Количество ДСЕ в спецификации]]*INDEX(таблПоиск11[Количество оборудования к запуску],MATCH(ROW(A65),таблПоиск11[Для расчета])))","v":""},null,null,null,{"$f":"IF(MATCH(ТаблВспомогалка12[[#This Row],[Шифр детали или СБ]],A$20:A84,)=ROW(H65),H83+1,H83)","v":29}]

{"sheet":"Статусы","index":2,"n_rows":9,"n_cols":1,"rows_kept":9,"cut":false,"hidden":true,"merged":[]}
["Статусы"]
["На запуске в КБ"]
["На запуске МУ"]
["Изготовление на МУ"]
["Сдано на склад ДСЕ"]
["На участке сборки"]
["Установка электрики и автоматики"]
["Испытания"]
["Упаковано"]

{"sheet":"Список оборудования","index":3,"n_rows":46,"n_cols":2,"rows_kept":46,"cut":false,"hidden":true,"merged":[]}
["Список шифров оборудовния","Список названий оборудовния"]
[]
[]
[{"$f":"IFERROR(INDEX(Оглавление,ROW()),\"\")","v":"КПУ EBS"},"Длинная печь(разогрев преформы)"]
[{"$f":"IFERROR(INDEX(Оглавление,ROW()),\"\")","v":"ДП"},"Автомат выдува"]
[{"$f":"IFERROR(INDEX(Оглавление,ROW()),\"\")","v":"ТРП"},"Автоматический группиратор бутылок"]
[{"$f":"IFERROR(INDEX(Оглавление,ROW()),\"\")","v":"ТРПШ"},"Автоматический группиратор бутылок"]
[{"$f":"IFERROR(INDEX(Оглавление,ROW()),\"\")","v":"ТРПП"},"Автоматический группиратор бутылок"]
[{"$f":"IFERROR(INDEX(Оглавление,ROW()),\"\")","v":""}]
[{"$f":"IFERROR(INDEX(Оглавление,ROW()),\"\")","v":""}]
[{"$f":"IFERROR(INDEX(Оглавление,ROW()),\"\")","v":""}]
[{"$f":"IFERROR(INDEX(Оглавление,ROW()),\"\")","v":""}]
[{"$f":"IFERROR(INDEX(Оглавление,ROW()),\"\")","v":""}]
[{"$f":"IFERROR(INDEX(Оглавление,ROW()),\"\")","v":""}]
[{"$f":"IFERROR(INDEX(Оглавление,ROW()),\"\")","v":""}]
[{"$f":"IFERROR(INDEX(Оглавление,ROW()),\"\")","v":""}]
[{"$f":"IFERROR(INDEX(Оглавление,ROW()),\"\")","v":""}]
[{"$f":"IFERROR(INDEX(Оглавление,ROW()),\"\")","v":""}]
[{"$f":"IFERROR(INDEX(Оглавление,ROW()),\"\")","v":""}]
[{"$f":"IFERROR(INDEX(Оглавление,ROW()),\"\")","v":""}]
[{"$f":"IFERROR(INDEX(Оглавление,ROW()),\"\")","v":""}]
[{"$f":"IFERROR(INDEX(Оглавление,ROW()),\"\")","v":""}]
[{"$f":"IFERROR(INDEX(Оглавление,ROW()),\"\")","v":""}]
[{"$f":"IFERROR(INDEX(Оглавление,ROW()),\"\")","v":""}]
[{"$f":"IFERROR(INDEX(Оглавление,ROW()),\"\")","v":""}]
[{"$f":"IFERROR(INDEX(Оглавление,ROW()),\"\")","v":""}]
[{"$f":"IFERROR(INDEX(Оглавление,ROW()),\"\")","v":""}]
[{"$f":"IFERROR(INDEX(Оглавление,ROW()),\"\")","v":""}]
[{"$f":"IFERROR(INDEX(Оглавление,ROW()),\"\")","v":""}]
[{"$f":"IFERROR(INDEX(Оглавление,ROW()),\"\")","v":""}]
[{"$f":"IFERROR(INDEX(Оглавление,ROW()),\"\")","v":""}]
[{"$f":"IFERROR(INDEX(Оглавление,ROW()),\"\")","v":""}]
[{"$f":"IFERROR(INDEX(Оглавление,ROW()),\"\")","v":""}]
[{"$f":"IFERROR(INDEX(Оглавление,ROW()),\"\")","v":""}]
[{"$f":"IFERROR(INDEX(Оглавление,ROW()),\"\")","v":""}]
[{"$f":"IFERROR(INDEX(Оглавление,ROW()),\"\")","v":""}]
[{"$f":"IFERROR(INDEX(Оглавление,ROW()),\"\")","v":""}]
[{"$f":"IFERROR(INDEX(Оглавление,ROW()),\"\")","v":""}]
[{"$f":"IFERROR(INDEX(Оглавление,ROW()),\"\")","v":""}]
[]
[{"$f":"IFERROR(INDEX(Оглавление,ROW()),\"\")","v":""}]
[{"$f":"IFERROR(INDEX(Оглавление,ROW()),\"\")","v":""}]
[{"$f":"IFERROR(INDEX(Оглавление,ROW()),\"\")","v":""}]
[{"$f":"IFERROR(INDEX(Оглавление,ROW()),\"\")","v":""}]
[{"$f":"IFERROR(INDEX(Оглавление,ROW()),\"\")","v":""}]
[{"$f":"IFERROR(INDEX(Оглавление,ROW()),\"\")","v":""}]

{"sheet":"КПУ EBS","index":4,"n_rows":12,"n_cols":25,"rows_kept":12,"cut":false,"hidden":false,"merged":[]}
["Шифр детали или СБ","Наименование детали или СБ","количество","Порядок запуска","Вырубка","Ленточнопильный","Гидрообразив","Лазер","Токарный","Токарный с ЧПУ","Фрезерный","Фрезерный с ЧПУ","Общее время","Расточка","Портальный фрезерный","Сварка","Шлифовальный","Зачистка","ОТК","Получение со склада","Сборка","Гибка","Упаковка, час","Сверловка","Резьба"]
[]
["EBС.01.000","Кронштейн пушки",1,null,null,null,null,null,null,null,null,null,null,null,null,null,null,null,null,null,null,null,12]
["ЕВС.01.001","Скоба",1]
["EBС.00.001","Кронштейн",1]
["EBС.00.004","Грибок",3,null,null,null,null,null,0.17,null,0.02,null,0.2,null,null,null,null,null,null,null,null,null,null,0.1,0.1]
["EBС.00.005","Полка",1]
["EBС.00.006","Держатель",2,null,null,0.05,null,null,0.25,null,0.4,null,1.1000000000000001,0.25,null,null,null,null,null,null,null,null,null,0.2,0.2]
["ЕБС.00.007","Пластина",2]
["ЕВС.01.002","Трубка 16х1.5 08X18H10 L=800",1]
["EBС.00.002","Труба 48.3х1.5 08X18H10 L=780",2]
["EBС.00.003","Труба 42.4х1.5 08X18H10 L=315",1]

{"sheet":"ДП","index":5,"n_rows":12,"n_cols":25,"rows_kept":12,"cut":false,"hidden":false,"merged":[]}
["Шифр детали или СБ","Наименование детали или СБ","количество","Порядок запуска","Вырубка","Ленточнопильный","Гидрообразив","Лазер","Токарный","Токарный с ЧПУ","Фрезерный","Фрезерный с ЧПУ","Общее время","Расточка","Портальный фрезерный","Сварка","Шлифовальный","Зачистка","ОТК","Получение со склада","Сборка","Гибка","Упаковка, час","Сверловка","Резьба"]
[]
["ДП1","Кронштейн пушки",1,null,null,null,null,null,null,null,null,null,null,null,null,null,null,null,null,null,null,null,12]
["ДП2","Скоба",1]
["ДП3","Кронштейн",1]
["ДП4","Грибок",3,null,null,null,null,null,0.17,null,0.02,null,0.2,null,null,null,null,null,null,null,null,null,null,0.1,0.1]
["ДП5","Полка",1]
["ДП6","Держатель",2,null,null,0.05,null,null,0.25,null,0.4,null,1.1000000000000001,0.25,null,null,null,null,null,null,null,null,null,0.2,0.2]
["ДП7","Пластина",2]
["ДП8","Трубка 16х1.5 08X18H10 L=800",1]
["ДП9","Труба 48.3х1.5 08X18H10 L=780",2]
["EBС.00.003","Труба 42.4х1.5 08X18H10 L=315",1]

{"sheet":"ТРП","index":6,"n_rows":12,"n_cols":25,"rows_kept":12,"cut":false,"hidden":false,"merged":[]}
["Шифр детали или СБ","Наименование детали или СБ","количество","Порядок запуска","Вырубка","Ленточнопильный","Гидрообразив","Лазер","Токарный","Токарный с ЧПУ","Фрезерный","Фрезерный с ЧПУ","Общее время","Расточка","Портальный фрезерный","Сварка","Шлифовальный","Зачистка","ОТК","Получение со склада","Сборка","Гибка","Упаковка, час","Сверловка","Резьба"]
[]
["EBС.01.000","Кронштейн пушки",1,null,null,null,null,null,null,null,null,null,null,null,null,null,null,null,null,null,null,null,12]
["ТРП1","Скоба",1]
["ТРП2","Кронштейн",1]
["ТРП3","Грибок",3,null,null,null,null,null,0.17,null,0.02,null,0.2,null,null,null,null,null,null,null,null,null,null,0.1,0.1]
["ТРП4","Полка",1]
["ТРП5","Держатель",2,null,null,0.05,null,null,0.25,null,0.4,null,1.1000000000000001,0.25,null,null,null,null,null,null,null,null,null,0.2,0.2]
["ТРП6","Пластина",2]
["ТРП7","Трубка 16х1.5 08X18H10 L=800",1]
["ТРП8","Труба 48.3х1.5 08X18H10 L=780",2]
["ТРП9","Труба 42.4х1.5 08X18H10 L=315",1]

{"sheet":"ТРПШ","index":7,"n_rows":12,"n_cols":25,"rows_kept":12,"cut":false,"hidden":false,"merged":[]}
["Шифр детали или СБ","Наименование детали или СБ","количество","Порядок запуска","Вырубка","Ленточнопильный","Гидрообразив","Лазер","Токарный","Токарный с ЧПУ","Фрезерный","Фрезерный с ЧПУ","Общее время","Расточка","Портальный фрезерный","Сварка","Шлифовальный","Зачистка","ОТК","Получение со склада","Сборка","Гибка","Упаковка, час","Сверловка","Резьба"]
[]
["ДП1","Кронштейн пушки",1,null,null,null,null,null,null,null,null,null,null,null,null,null,null,null,null,null,null,null,12]
["ТРПШ1","Скоба",1]
["ТРПШ2","Кронштейн",1]
["ТРПШ3","Грибок",3,null,null,null,null,null,0.17,null,0.02,null,0.2,null,null,null,null,null,null,null,null,null,null,0.1,0.1]
["ТРПШ4","Полка",1]
["ТРПШ5","Держатель",2,null,null,0.05,null,null,0.25,null,0.4,null,1.1000000000000001,0.25,null,null,null,null,null,null,null,null,null,0.2,0.2]
["ТРПШ6","Пластина",2]
["ТРПШ7","Трубка 16х1.5 08X18H10 L=800",1]
["ТРПШ8","Труба 48.3х1.5 08X18H10 L=780",2]
["ТРП8","Труба 42.4х1.5 08X18H10 L=315",1]

{"sheet":"ТРПП","index":8,"n_rows":12,"n_cols":25,"rows_kept":12,"cut":false,"hidden":false,"merged":[]}
["Шифр детали или СБ","Наименование детали или СБ","количество","Порядок запуска","Вырубка","Ленточнопильный","Гидрообразив","Лазер","Токарный","Токарный с ЧПУ","Фрезерный","Фрезерный с ЧПУ","Общее время","Расточка","Портальный фрезерный","Сварка","Шлифовальный","Зачистка","ОТК","Получение со склада","Сборка","Гибка","Упаковка, час","Сверловка","Резьба"]
[]
["ТРПП1","Кронштейн пушки",1,null,null,null,null,null,null,null,null,null,null,null,null,null,null,null,null,null,null,null,12]
["ТРПП2","Скоба",1]
["ТРПП3","Кронштейн",1]
["ТРПП4","Грибок",3,null,null,null,null,null,0.17,null,0.02,null,0.2,null,null,null,null,null,null,null,null,null,null,0.1,0.1]
["ТРПП5","Полка",1]
["ТРПП6","Держатель",2,null,null,0.05,null,null,0.25,null,0.4,null,1.1000000000000001,0.25,null,null,null,null,null,null,null,null,null,0.2,0.2]
["ТРПП7","Пластина",2]
["ТРПП8","Трубка 16х1.5 08X18H10 L=800",1]
["ТРПП9","Труба 48.3х1.5 08X18H10 L=780",2]
["ТРПП10","Труба 42.4х1.5 08X18H10 L=315",1]